{"text_format":"3","workbook":"xlsx","n_sheets":4,"sheets":["Controlador de Pontuação","Seu Desempenho","Configurações","Cálculos"],"not_rendered":{"defined_names":3,"comments":1},"read":"whole","date_system":"1900"}

{"sheet":"Controlador de Pontuação","index":0,"n_rows":14,"n_cols":6,"rows_kept":14}
[null,"Insira suas Pontuações Aqui"]
[]
[null,null,"Classe","Tipo","Descrição","Pontuação"]
[null,null,"Francês Moderno","Lição de Casa","História da Segunda Guerra Mundial",{"v":0.8,"d":"80%"}]
[null,null,"Programação Avançada em Java","Metade do semestre",null,{"v":0.75,"d":"75%"}]
[null,null,"Espanhol","Lição de Casa",null,{"v":0.5,"d":"50%"}]
[null,null,"Física Teórica","Lição de Casa",null,{"v":0.95,"d":"95%"}]
[null,null,"Francês Moderno","Lição de Casa","História da Primeira Guerra Mundial",{"v":0.9,"d":"90%"}]
[null,null,"Francês Moderno","Lição de Casa","Páginas 30 - 41",{"v":0.8,"d":"80%"}]
[null,null,"Composição","Ensaio","Trabalho de persuasão",{"v":0.95,"d":"95%"}]
[null,null,"Matemática 1","Lição de Casa","Páginas 21 e 26",{"v":0.8,"d":"80%"}]
[null,null,"Matemática 2","Lição de Casa","Páginas 15 e 18",{"v":0.85,"d":"85%"}]
[null,null,"Matemática 1","Lição de Casa","Páginas 34 - 36",{"v":0.8,"d":"80%"}]
[null,null,"Matemática 2","Teste",null,{"v":0.95,"d":"95%"}]

{"sheet":"Seu Desempenho","index":1,"n_rows":31,"n_cols":8,"rows_kept":31}
[null,"Seu Desempenho"]
[]
[null,null,"Totais"]
[null,null,{"$f":"\"Horas: \"&SUM(tblAulas[Horas de Crédito])","v":"Horas: 24"},{"$f":"AVERAGE(D7:D31)","v":{"v":0.8104761904761906,"d":"81%"}},{"$f":"AVERAGE(E7:E31)","v":{"v":2.7142857142857144,"d":"2.71"}},{"$f":"SUM(F7:F31)","v":{"v":2.625,"d":"2.63"}},{"$f":"IFERROR(HLOOKUP(D4,lstMapeamentoMédia,2),\"\")","v":"B-"}]
[]
[null,null,"Classes","%","Média de Notas","Médiag","Letra","Desempenho Geral"]
[null,null,{"$f":"Cálculos!C6","v":"Francês Moderno"},{"$f":"Cálculos!AL6","v":{"v":0.8333333333333334,"d":"83%"}},{"$f":"Cálculos!AM6","v":{"v":3,"d":"3.00"}},{"$f":"IFERROR(E7*Configurações!D9/SUM(tblAulas[Horas de Crédito]),\"\")","v":{"v":0.375,"d":"0.38"}},{"$f":"Cálculos!AN6","v":"B"}]
[null,null,{"$f":"Cálculos!C7","v":"Física Teórica"},{"$f":"Cálculos!AL7","v":{"v":0.95,"d":"95%"}},{"$f":"Cálculos!AM7","v":{"v":4,"d":"4.00"}},{"$f":"IFERROR(E8*Configurações!D10/SUM(tblAulas[Horas de Crédito]),\"\")","v":{"v":0.5,"d":"0.50"}},{"$f":"Cálculos!AN7","v":"A"}]
[null,null,{"$f":"Cálculos!C8","v":"Matemática 1"},{"$f":"Cálculos!AL8","v":{"v":0.8000000000000002,"d":"80%"}},{"$f":"Cálculos!AM8","v":2.67},{"$f":"IFERROR(E9*Configurações!D11/SUM(tblAulas[Horas de Crédito]),\"\")","v":{"v":0.445,"d":"0.45"}},{"$f":"Cálculos!AN8","v":"B-"}]
[null,null,{"$f":"Cálculos!C9","v":"Matemática 2"},{"$f":"Cálculos!AL9","v":{"v":0.89,"d":"89%"}},{"$f":"Cálculos!AM9","v":3.33},{"$f":"IFERROR(E10*Configurações!D12/SUM(tblAulas[Horas de Crédito]),\"\")","v":{"v":0.555,"d":"0.56"}},{"$f":"Cálculos!AN9","v":"B+"}]
[null,null,{"$f":"Cálculos!C10","v":"Programação Avançada em Java"},{"$f":"Cálculos!AL10","v":{"v":0.7500000000000001,"d":"75%"}},{"$f":"Cálculos!AM10","v":{"v":2,"d":"2.00"}},{"$f":"IFERROR(E11*Configurações!D13/SUM(tblAulas[Horas de Crédito]),\"\")","v":{"v":0.4166666666666667,"d":"0.42"}},{"$f":"Cálculos!AN10","v":"C"}]
[null,null,{"$f":"Cálculos!C11","v":"Espanhol"},{"$f":"Cálculos!AL11","v":{"v":0.5,"d":"50%"}},{"$f":"Cálculos!AM11","v":{"v":0,"d":"0.00"}},{"$f":"IFERROR(E12*Configurações!D14/SUM(tblAulas[Horas de Crédito]),\"\")","v":{"v":0,"d":"0.00"}},{"$f":"Cálculos!AN11","v":"F"}]
[null,null,{"$f":"Cálculos!C12","v":"Composição"},{"$f":"Cálculos!AL12","v":{"v":0.95,"d":"95%"}},{"$f":"Cálculos!AM12","v":{"v":4,"d":"4.00"}},{"$f":"IFERROR(E13*Configurações!D15/SUM(tblAulas[Horas de Crédito]),\"\")","v":{"v":0.3333333333333333,"d":"0.33"}},{"$f":"Cálculos!AN12","v":"A"}]
[null,null,{"$f":"Cálculos!C13","v":""},{"$f":"Cálculos!AL13","v":""},{"$f":"Cálculos!AM13","v":""},{"$f":"IFERROR(E14*Configurações!D16/SUM(tblAulas[Horas de Crédito]),\"\")","v":""},{"$f":"Cálculos!AN13","v":""}]
[{"$nulls":3},{"$f":"Cálculos!AL14","v":""},{"$f":"Cálculos!AM14","v":""},{"$f":"IFERROR(E15*Configurações!D17/SUM(tblAulas[Horas de Crédito]),\"\")","v":""},{"$f":"Cálculos!AN14","v":""}]
[null,null,{"$f":"Cálculos!C15","v":""},{"$f":"Cálculos!AL15","v":""},{"$f":"Cálculos!AM15","v":""},{"$f":"IFERROR(E16*Configurações!D18/SUM(tblAulas[Horas de Crédito]),\"\")","v":""},{"$f":"Cálculos!AN15","v":""}]
[null,null,{"$f":"Cálculos!C16","v":""},{"$f":"Cálculos!AL16","v":""},{"$f":"Cálculos!AM16","v":""},{"$f":"IFERROR(E17*Configurações!D19/SUM(tblAulas[Horas de Crédito]),\"\")","v":""},{"$f":"Cálculos!AN16","v":""}]
[null,null,{"$f":"Cálculos!C17","v":""},{"$f":"Cálculos!AL17","v":""},{"$f":"Cálculos!AM17","v":""},{"$f":"IFERROR(E18*Configurações!D20/SUM(tblAulas[Horas de Crédito]),\"\")","v":""},{"$f":"Cálculos!AN17","v":""}]
[null,null,{"$f":"Cálculos!C18","v":""},{"$f":"Cálculos!AL18","v":""},{"$f":"Cálculos!AM18","v":""},{"$f":"IFERROR(E19*Configurações!D21/SUM(tblAulas[Horas de Crédito]),\"\")","v":""},{"$f":"Cálculos!AN18","v":""}]
[null,null,{"$f":"Cálculos!C19","v":""},{"$f":"Cálculos!AL19","v":""},{"$f":"Cálculos!AM19","v":""},{"$f":"IFERROR(E20*Configurações!D22/SUM(tblAulas[Horas de Crédito]),\"\")","v":""},{"$f":"Cálculos!AN19","v":""}]
[null,null,{"$f":"Cálculos!C20","v":""},{"$f":"Cálculos!AL20","v":""},{"$f":"Cálculos!AM20","v":""},{"$f":"IFERROR(E21*Configurações!D23/SUM(tblAulas[Horas de Crédito]),\"\")","v":""},{"$f":"Cálculos!AN20","v":""}]
[null,null,{"$f":"Cálculos!C21","v":""},{"$f":"Cálculos!AL21","v":""},{"$f":"Cálculos!AM21","v":""},{"$f":"IFERROR(E22*Configurações!D24/SUM(tblAulas[Horas de Crédito]),\"\")","v":""},{"$f":"Cálculos!AN21","v":""}]
[null,null,{"$f":"Cálculos!C22","v":""},{"$f":"Cálculos!AL22","v":""},{"$f":"Cálculos!AM22","v":""},{"$f":"IFERROR(E23*Configurações!D25/SUM(tblAulas[Horas de Crédito]),\"\")","v":""},{"$f":"Cálculos!AN22","v":""}]
[null,null,{"$f":"Cálculos!C23","v":""},{"$f":"Cálculos!AL23","v":""},{"$f":"Cálculos!AM23","v":""},{"$f":"IFERROR(E24*Configurações!D26/SUM(tblAulas[Horas de Crédito]),\"\")","v":""},{"$f":"Cálculos!AN23","v":""}]
[null,null,{"$f":"Cálculos!C24","v":""},{"$f":"Cálculos!AL24","v":""},{"$f":"Cálculos!AM24","v":""},{"$f":"IFERROR(E25*Configurações!D27/SUM(tblAulas[Horas de Crédito]),\"\")","v":""},{"$f":"Cálculos!AN24","v":""}]
[null,null,{"$f":"Cálculos!C25","v":""},{"$f":"Cálculos!AL25","v":""},{"$f":"Cálculos!AM25","v":""},{"$f":"IFERROR(E26*Configurações!D28/SUM(tblAulas[Horas de Crédito]),\"\")","v":""},{"$f":"Cálculos!AN25","v":""}]
[null,null,{"$f":"Cálculos!C26","v":""},{"$f":"Cálculos!AL26","v":""},{"$f":"Cálculos!AM26","v":""},{"$f":"IFERROR(E27*Configurações!D29/SUM(tblAulas[Horas de Crédito]),\"\")","v":""},{"$f":"Cálculos!AN26","v":""}]
[null,null,{"$f":"Cálculos!C27","v":""},{"$f":"Cálculos!AL27","v":""},{"$f":"Cálculos!AM27","v":""},{"$f":"IFERROR(E28*Configurações!D30/SUM(tblAulas[Horas de Crédito]),\"\")","v":""},{"$f":"Cálculos!AN27","v":""}]
[null,null,{"$f":"Cálculos!C28","v":""},{"$f":"Cálculos!AL28","v":""},{"$f":"Cálculos!AM28","v":""},{"$f":"IFERROR(E29*Configurações!D31/SUM(tblAulas[Horas de Crédito]),\"\")","v":""},{"$f":"Cálculos!AN28","v":""}]
[null,null,{"$f":"Cálculos!C29","v":""},{"$f":"Cálculos!AL29","v":""},{"$f":"Cálculos!AM29","v":""},{"$f":"IFERROR(E30*Configurações!D32/SUM(tblAulas[Horas de Crédito]),\"\")","v":""},{"$f":"Cálculos!AN29","v":""}]
[null,null,{"$f":"Cálculos!C30","v":""},{"$f":"Cálculos!AL30","v":""},{"$f":"Cálculos!AM30","v":""},{"$f":"IFERROR(E31*Configurações!D33/SUM(tblAulas[Horas de Crédito]),\"\")","v":""},{"$f":"Cálculos!AN30","v":""}]

{"sheet":"Configurações","index":2,"n_rows":15,"n_cols":16,"rows_kept":15,"merged":[[5,2,5,15]]}
[null,"Configurações"]
[null,null,"Mapeamento de pontuações e médias"]
[null,null,"Porcentagem",{"v":0,"d":"0%"},{"v":0.6,"d":"60%"},{"v":0.63,"d":"63%"},{"v":0.67,"d":"67%"},{"v":0.7,"d":"70%"},{"v":0.73,"d":"73%"},{"v":0.77,"d":"77%"},{"v":0.8,"d":"80%"},{"v":0.83,"d":"83%"},{"v":0.87,"d":"87%"},{"v":0.9,"d":"90%"},{"v":0.93,"d":"93%"},{"v":0.97,"d":"97%"}]
[null,null,"Nota de Letra","F","D-","D","D+","C-","C","C+","B-","B","B+","A-","A","A+"]
[null,null,"Média de Notas",0,0.67,1,1.33,1.67,2,2.33,2.67,3,3.33,3.67,4,4]
[]
[null,null,"Pontuações ponderadas de até 25 classes"]
[null,null,"Classes que você está frequentando","Horas de Crédito","Lição de Casa","Ensaio","Teste","Projeto","Metade do semestre","Exame Final","Outros","Total %"]
[null,null,"Francês Moderno",{"v":3,"d":"3.0"},{"v":0.1,"d":"10%"},{"v":0.15,"d":"15%"},{"v":0.15,"d":"15%"},{"v":0.1,"d":"10%"},{"v":0.2,"d":"20%"},{"v":0.3,"d":"30%"},null,{"$f":"SUM(tblAulas[[#This Row],[Lição de Casa]:[Outros]])","v":{"v":1,"d":"100%"}}]
[null,null,"Física Teórica",{"v":3,"d":"3.0"},{"v":0.15,"d":"15%"},{"v":0.15,"d":"15%"},{"v":0.1,"d":"10%"},{"v":0.1,"d":"10%"},{"v":0.15,"d":"15%"},{"v":0.3,"d":"30%"},{"v":0.05,"d":"5%"},{"$f":"SUM(tblAulas[[#This Row],[Lição de Casa]:[Outros]])","v":{"v":1,"d":"100%"}}]
[null,null,"Matemática 1",{"v":4,"d":"4.0"},{"v":0.1,"d":"10%"},{"v":0.15,"d":"15%"},{"v":0.15,"d":"15%"},{"v":0.1,"d":"10%"},{"v":0.2,"d":"20%"},{"v":0.3,"d":"30%"},null,{"$f":"SUM(tblAulas[[#This Row],[Lição de Casa]:[Outros]])","v":{"v":1,"d":"100%"}}]
[null,null,"Matemática 2",{"v":4,"d":"4.0"},{"v":0.15,"d":"15%"},{"v":0.15,"d":"15%"},{"v":0.1,"d":"10%"},{"v":0.1,"d":"10%"},{"v":0.15,"d":"15%"},{"v":0.3,"d":"30%"},{"v":0.05,"d":"5%"},{"$f":"SUM(tblAulas[[#This Row],[Lição de Casa]:[Outros]])","v":{"v":1,"d":"100%"}}]
[null,null,"Programação Avançada em Java",{"v":5,"d":"5.0"},{"v":0.15,"d":"15%"},{"v":0.15,"d":"15%"},{"v":0.1,"d":"10%"},{"v":0.1,"d":"10%"},{"v":0.2,"d":"20%"},{"v":0.3,"d":"30%"},null,{"$f":"SUM(tblAulas[[#This Row],[Lição de Casa]:[Outros]])","v":{"v":1,"d":"100%"}}]
[null,null,"Espanhol",{"v":3,"d":"3.0"},{"v":0.1,"d":"10%"},{"v":0.15,"d":"15%"},{"v":0.17,"d":"17%"},{"v":0.13,"d":"13%"},{"v":0.2,"d":"20%"},{"v":0.2,"d":"20%"},{"v":0.05,"d":"5%"},{"$f":"SUM(tblAulas[[#This Row],[Lição de Casa]:[Outros]])","v":{"v":1,"d":"100%"}}]
[null,null,"Composição",{"v":2,"d":"2.0"},{"v":0.15,"d":"15%"},{"v":0.15,"d":"15%"},{"v":0.12,"d":"12%"},{"v":0.15,"d":"15%"},{"v":0.15,"d":"15%"},{"v":0.25,"d":"25%"},{"v":0.03,"d":"3%"},{"$f":"SUM(tblAulas[[#This Row],[Lição de Casa]:[Outros]])","v":{"v":1,"d":"100%"}}]

{"sheet":"Cálculos","index":3,"n_rows":657,"n_cols":40,"rows_kept":657,"hidden":true}
[null,"Cálculos"]
[null,null,"Esta planilha fornece cálculos para suas notas e médias, e deve permanecer oculta. Qualquer alteração nesta planilha pode resultar em erros."]
[]
[null,null,"Lista de Classes Atual","Pontuações (de 1)",{"$nulls":24},"Cálculo de Nota"]
[null,null,"Classe",1,2,3,4,5,6,7,8,9,10,11,12,13,14,15,16,17,18,19,20,21,22,23,24,25,{"$f":"tblAulas[[#Headers],[Lição de Casa]]","v":"Lição de Casa"},{"$f":"tblAulas[[#Headers],[Ensaio]]","v":"Ensaio"},{"$f":"tblAulas[[#Headers],[Teste]]","v":"Teste"},{"$f":"tblAulas[[#Headers],[Projeto]]","v":"Projeto"},{"$f":"tblAulas[[#Headers],[Metade do semestre]]","v":"Metade do semestre"},{"$f":"tblAulas[[#Headers],[Exame Final]]","v":"Exame Final"},{"$f":"tblAulas[[#Headers],[Outros]]","v":"Outros"},"Total","Total de Pontos Possíveis","% Total","Ponto de Nota","Nota de Letra"]
[null,null,{"$f":"IF(Configurações!C9=\"\",\"\",Configurações!C9)","v":"Francês Moderno"},{"$f":"IFERROR(INDEX(PontuaçõesClassetbl[],MATCH($C6:$C30&D$5:AB$5,Cálculos!$C$33:$C$657,0),4),\"\")","v":{"v":0.8,"d":"80%"}},{"v":0.9,"d":"90%"},{"v":0.8,"d":"80%"},"","","","","","","","","","","","","","","","","","","","","","",{"$f":"IFERROR(AVERAGEIFS(PontuaçõesClassetbl[Pontuação],PontuaçõesClassetbl[Classe],Cálculos!$C6,PontuaçõesClassetbl[Tipo],Cálculos!AC$5)*Configurações!E9,\"\")","v":0.08333333333333334},{"$f":"IFERROR(AVERAGEIFS(PontuaçõesClassetbl[Pontuação],PontuaçõesClassetbl[Classe],Cálculos!$C6,PontuaçõesClassetbl[Tipo],Cálculos!AD$5)*Configurações!F9,\"\")","v":""},{"$f":"IFERROR(AVERAGEIFS(PontuaçõesClassetbl[Pontuação],PontuaçõesClassetbl[Classe],Cálculos!$C6,PontuaçõesClassetbl[Tipo],Cálculos!AE$5)*Configurações!G9,\"\")","v":""},{"$f":"IFERROR(AVERAGEIFS(PontuaçõesClassetbl[Pontuação],PontuaçõesClassetbl[Classe],Cálculos!$C6,PontuaçõesClassetbl[Tipo],Cálculos!AF$5)*Configurações!H9,\"\")","v":""},{"$f":"IFERROR(AVERAGEIFS(PontuaçõesClassetbl[Pontuação],PontuaçõesClassetbl[Classe],Cálculos!$C6,PontuaçõesClassetbl[Tipo],Cálculos!AG$5)*Configurações!I9,\"\")","v":""},{"$f":"IFERROR(AVERAGEIFS(PontuaçõesClassetbl[Pontuação],PontuaçõesClassetbl[Classe],Cálculos!$C6,PontuaçõesClassetbl[Tipo],Cálculos!AH$5)*Configurações!J9,\"\")","v":""},{"$f":"IFERROR(AVERAGEIFS(PontuaçõesClassetbl[Pontuação],PontuaçõesClassetbl[Classe],Cálculos!$C6,PontuaçõesClassetbl[Tipo],Cálculos!AI$5)*Configurações!K9,\"\")","v":""},{"$f":"SUM(AC6:AI6)","v":0.08333333333333334},{"$f":"SUMIFS(Configurações!E9:K9,Cálculos!AC6:AI6,\">0\")","v":0.1},{"$f":"IFERROR(AJ6/AK6,\"\")","v":{"v":0.8333333333333334,"d":"83%"}},{"$f":"IFERROR(HLOOKUP(AL6,lstMapeamentoMédia,3),\"\")","v":3},{"$f":"IFERROR(HLOOKUP(AL6,lstMapeamentoMédia,2),\"\")","v":"B"}]
[null,null,{"$f":"IF(Configurações!C10=\"\",\"\",Configurações!C10)","v":"Física Teórica"},{"v":0.95,"d":"95%"},"","","","","","","","","","","","","","","","","","","","","","","","",{"$f":"IFERROR(AVERAGEIFS(PontuaçõesClassetbl[Pontuação],PontuaçõesClassetbl[Classe],Cálculos!$C7,PontuaçõesClassetbl[Tipo],Cálculos!AC$5)*Configurações!E10,\"\")","v":0.1425},{"$f":"IFERROR(AVERAGEIFS(PontuaçõesClassetbl[Pontuação],PontuaçõesClassetbl[Classe],Cálculos!$C7,PontuaçõesClassetbl[Tipo],Cálculos!AD$5)*Configurações!F10,\"\")","v":""},{"$f":"IFERROR(AVERAGEIFS(PontuaçõesClassetbl[Pontuação],PontuaçõesClassetbl[Classe],Cálculos!$C7,PontuaçõesClassetbl[Tipo],Cálculos!AE$5)*Configurações!G10,\"\")","v":""},{"$f":"IFERROR(AVERAGEIFS(PontuaçõesClassetbl[Pontuação],PontuaçõesClassetbl[Classe],Cálculos!$C7,PontuaçõesClassetbl[Tipo],Cálculos!AF$5)*Configurações!H10,\"\")","v":""},{"$f":"IFERROR(AVERAGEIFS(PontuaçõesClassetbl[Pontuação],PontuaçõesClassetbl[Classe],Cálculos!$C7,PontuaçõesClassetbl[Tipo],Cálculos!AG$5)*Configurações!I10,\"\")","v":""},{"$f":"IFERROR(AVERAGEIFS(PontuaçõesClassetbl[Pontuação],PontuaçõesClassetbl[Classe],Cálculos!$C7,PontuaçõesClassetbl[Tipo],Cálculos!AH$5)*Configurações!J10,\"\")","v":""},{"$f":"IFERROR(AVERAGEIFS(PontuaçõesClassetbl[Pontuação],PontuaçõesClassetbl[Classe],Cálculos!$C7,PontuaçõesClassetbl[Tipo],Cálculos!AI$5)*Configurações!K10,\"\")","v":""},{"$f":"SUM(AC7:AI7)","v":0.1425},{"$f":"SUMIFS(Configurações!E10:K10,Cálculos!AC7:AI7,\">0\")","v":0.15},{"$f":"IFERROR(AJ7/AK7,\"\")","v":{"v":0.95,"d":"95%"}},4,"A"]
[null,null,{"$f":"IF(Configurações!C11=\"\",\"\",Configurações!C11)","v":"Matemática 1"},{"v":0.8,"d":"80%"},{"v":0.8,"d":"80%"},"","","","","","","","","","","","","","","","","","","","","","","",{"$f":"IFERROR(AVERAGEIFS(PontuaçõesClassetbl[Pontuação],PontuaçõesClassetbl[Classe],Cálculos!$C8,PontuaçõesClassetbl[Tipo],Cálculos!AC$5)*Configurações!E11,\"\")","v":0.08000000000000002},{"$f":"IFERROR(AVERAGEIFS(PontuaçõesClassetbl[Pontuação],PontuaçõesClassetbl[Classe],Cálculos!$C8,PontuaçõesClassetbl[Tipo],Cálculos!AD$5)*Configurações!F11,\"\")","v":""},{"$f":"IFERROR(AVERAGEIFS(PontuaçõesClassetbl[Pontuação],PontuaçõesClassetbl[Classe],Cálculos!$C8,PontuaçõesClassetbl[Tipo],Cálculos!AE$5)*Configurações!G11,\"\")","v":""},{"$f":"IFERROR(AVERAGEIFS(PontuaçõesClassetbl[Pontuação],PontuaçõesClassetbl[Classe],Cálculos!$C8,PontuaçõesClassetbl[Tipo],Cálculos!AF$5)*Configurações!H11,\"\")","v":""},{"$f":"IFERROR(AVERAGEIFS(PontuaçõesClassetbl[Pontuação],PontuaçõesClassetbl[Classe],Cálculos!$C8,PontuaçõesClassetbl[Tipo],Cálculos!AG$5)*Configurações!I11,\"\")","v":""},{"$f":"IFERROR(AVERAGEIFS(PontuaçõesClassetbl[Pontuação],PontuaçõesClassetbl[Classe],Cálculos!$C8,PontuaçõesClassetbl[Tipo],Cálculos!AH$5)*Configurações!J11,\"\")","v":""},{"$f":"IFERROR(AVERAGEIFS(PontuaçõesClassetbl[Pontuação],PontuaçõesClassetbl[Classe],Cálculos!$C8,PontuaçõesClassetbl[Tipo],Cálculos!AI$5)*Configurações!K11,\"\")","v":""},0.08000000000000002,{"$f":"SUMIFS(Configurações!E11:K11,Cálculos!AC8:AI8,\">0\")","v":0.1},{"v":0.8000000000000002,"d":"80%"},2.67,"B-"]
[null,null,{"$f":"IF(Configurações!C12=\"\",\"\",Configurações!C12)","v":"Matemática 2"},{"v":0.85,"d":"85%"},{"v":0.95,"d":"95%"},"","","","","","","","","","","","","","","","","","","","","","","",{"$f":"IFERROR(AVERAGEIFS(PontuaçõesClassetbl[Pontuação],PontuaçõesClassetbl[Classe],Cálculos!$C9,PontuaçõesClassetbl[Tipo],Cálculos!AC$5)*Configurações!E12,\"\")","v":0.1275},{"$f":"IFERROR(AVERAGEIFS(PontuaçõesClassetbl[Pontuação],PontuaçõesClassetbl[Classe],Cálculos!$C9,PontuaçõesClassetbl[Tipo],Cálculos!AD$5)*Configurações!F12,\"\")","v":""},{"$f":"IFERROR(AVERAGEIFS(PontuaçõesClassetbl[Pontuação],PontuaçõesClassetbl[Classe],Cálculos!$C9,PontuaçõesClassetbl[Tipo],Cálculos!AE$5)*Configurações!G12,\"\")","v":0.095},{"$f":"IFERROR(AVERAGEIFS(PontuaçõesClassetbl[Pontuação],PontuaçõesClassetbl[Classe],Cálculos!$C9,PontuaçõesClassetbl[Tipo],Cálculos!AF$5)*Configurações!H12,\"\")","v":""},{"$f":"IFERROR(AVERAGEIFS(PontuaçõesClassetbl[Pontuação],PontuaçõesClassetbl[Classe],Cálculos!$C9,PontuaçõesClassetbl[Tipo],Cálculos!AG$5)*Configurações!I12,\"\")","v":""},{"$f":"IFERROR(AVERAGEIFS(PontuaçõesClassetbl[Pontuação],PontuaçõesClassetbl[Classe],Cálculos!$C9,PontuaçõesClassetbl[Tipo],Cálculos!AH$5)*Configurações!J12,\"\")","v":""},{"$f":"IFERROR(AVERAGEIFS(PontuaçõesClassetbl[Pontuação],PontuaçõesClassetbl[Classe],Cálculos!$C9,PontuaçõesClassetbl[Tipo],Cálculos!AI$5)*Configurações!K12,\"\")","v":""},0.2225,{"$f":"SUMIFS(Configurações!E12:K12,Cálculos!AC9:AI9,\">0\")","v":0.25},{"v":0.89,"d":"89%"},3.33,"B+"]
[null,null,{"$f":"IF(Configurações!C13=\"\",\"\",Configurações!C13)","v":"Programação Avançada em Java"},{"v":0.75,"d":"75%"},"","","","","","","","","","","","","","","","","","","","","","","","",{"$f":"IFERROR(AVERAGEIFS(PontuaçõesClassetbl[Pontuação],PontuaçõesClassetbl[Classe],Cálculos!$C10,PontuaçõesClassetbl[Tipo],Cálculos!AC$5)*Configurações!E13,\"\")","v":""},{"$f":"IFERROR(AVERAGEIFS(PontuaçõesClassetbl[Pontuação],PontuaçõesClassetbl[Classe],Cálculos!$C10,PontuaçõesClassetbl[Tipo],Cálculos!AD$5)*Configurações!F13,\"\")","v":""},{"$f":"IFERROR(AVERAGEIFS(PontuaçõesClassetbl[Pontuação],PontuaçõesClassetbl[Classe],Cálculos!$C10,PontuaçõesClassetbl[Tipo],Cálculos!AE$5)*Configurações!G13,\"\")","v":""},{"$f":"IFERROR(AVERAGEIFS(PontuaçõesClassetbl[Pontuação],PontuaçõesClassetbl[Classe],Cálculos!$C10,PontuaçõesClassetbl[Tipo],Cálculos!AF$5)*Configurações!H13,\"\")","v":""},{"$f":"IFERROR(AVERAGEIFS(PontuaçõesClassetbl[Pontuação],PontuaçõesClassetbl[Classe],Cálculos!$C10,PontuaçõesClassetbl[Tipo],Cálculos!AG$5)*Configurações!I13,\"\")","v":0.15000000000000002},{"$f":"IFERROR(AVERAGEIFS(PontuaçõesClassetbl[Pontuação],PontuaçõesClassetbl[Classe],Cálculos!$C10,PontuaçõesClassetbl[Tipo],Cálculos!AH$5)*Configurações!J13,\"\")","v":""},{"$f":"IFERROR(AVERAGEIFS(PontuaçõesClassetbl[Pontuação],PontuaçõesClassetbl[Classe],Cálculos!$C10,PontuaçõesClassetbl[Tipo],Cálculos!AI$5)*Configurações!K13,\"\")","v":""},0.15000000000000002,{"$f":"SUMIFS(Configurações!E13:K13,Cálculos!AC10:AI10,\">0\")","v":0.2},{"v":0.7500000000000001,"d":"75%"},2,"C"]
[null,null,{"$f":"IF(Configurações!C14=\"\",\"\",Configurações!C14)","v":"Espanhol"},{"v":0.5,"d":"50%"},"","","","","","","","","","","","","","","","","","","","","","","","",{"$f":"IFERROR(AVERAGEIFS(PontuaçõesClassetbl[Pontuação],PontuaçõesClassetbl[Classe],Cálculos!$C11,PontuaçõesClassetbl[Tipo],Cálculos!AC$5)*Configurações!E14,\"\")","v":0.05},{"$f":"IFERROR(AVERAGEIFS(PontuaçõesClassetbl[Pontuação],PontuaçõesClassetbl[Classe],Cálculos!$C11,PontuaçõesClassetbl[Tipo],Cálculos!AD$5)*Configurações!F14,\"\")","v":""},{"$f":"IFERROR(AVERAGEIFS(PontuaçõesClassetbl[Pontuação],PontuaçõesClassetbl[Classe],Cálculos!$C11,PontuaçõesClassetbl[Tipo],Cálculos!AE$5)*Configurações!G14,\"\")","v":""},{"$f":"IFERROR(AVERAGEIFS(PontuaçõesClassetbl[Pontuação],PontuaçõesClassetbl[Classe],Cálculos!$C11,PontuaçõesClassetbl[Tipo],Cálculos!AF$5)*Configurações!H14,\"\")","v":""},{"$f":"IFERROR(AVERAGEIFS(PontuaçõesClassetbl[Pontuação],PontuaçõesClassetbl[Classe],Cálculos!$C11,PontuaçõesClassetbl[Tipo],Cálculos!AG$5)*Configurações!I14,\"\")","v":""},{"$f":"IFERROR(AVERAGEIFS(PontuaçõesClassetbl[Pontuação],PontuaçõesClassetbl[Classe],Cálculos!$C11,PontuaçõesClassetbl[Tipo],Cálculos!AH$5)*Configurações!J14,\"\")","v":""},{"$f":"IFERROR(AVERAGEIFS(PontuaçõesClassetbl[Pontuação],PontuaçõesClassetbl[Classe],Cálculos!$C11,PontuaçõesClassetbl[Tipo],Cálculos!AI$5)*Configurações!K14,\"\")","v":""},0.05,{"$f":"SUMIFS(Configurações!E14:K14,Cálculos!AC11:AI11,\">0\")","v":0.1},{"v":0.5,"d":"50%"},0,"F"]
[null,null,{"$f":"IF(Configurações!C15=\"\",\"\",Configurações!C15)","v":"Composição"},{"v":0.95,"d":"95%"},"","","","","","","","","","","","","","","","","","","","","","","","",{"$f":"IFERROR(AVERAGEIFS(PontuaçõesClassetbl[Pontuação],PontuaçõesClassetbl[Classe],Cálculos!$C12,PontuaçõesClassetbl[Tipo],Cálculos!AC$5)*Configurações!E15,\"\")","v":""},{"$f":"IFERROR(AVERAGEIFS(PontuaçõesClassetbl[Pontuação],PontuaçõesClassetbl[Classe],Cálculos!$C12,PontuaçõesClassetbl[Tipo],Cálculos!AD$5)*Configurações!F15,\"\")","v":0.1425},{"$f":"IFERROR(AVERAGEIFS(PontuaçõesClassetbl[Pontuação],PontuaçõesClassetbl[Classe],Cálculos!$C12,PontuaçõesClassetbl[Tipo],Cálculos!AE$5)*Configurações!G15,\"\")","v":""},{"$f":"IFERROR(AVERAGEIFS(PontuaçõesClassetbl[Pontuação],PontuaçõesClassetbl[Classe],Cálculos!$C12,PontuaçõesClassetbl[Tipo],Cálculos!AF$5)*Configurações!H15,\"\")","v":""},{"$f":"IFERROR(AVERAGEIFS(PontuaçõesClassetbl[Pontuação],PontuaçõesClassetbl[Classe],Cálculos!$C12,PontuaçõesClassetbl[Tipo],Cálculos!AG$5)*Configurações!I15,\"\")","v":""},{"$f":"IFERROR(AVERAGEIFS(PontuaçõesClassetbl[Pontuação],PontuaçõesClassetbl[Classe],Cálculos!$C12,PontuaçõesClassetbl[Tipo],Cálculos!AH$5)*Configurações!J15,\"\")","v":""},{"$f":"IFERROR(AVERAGEIFS(PontuaçõesClassetbl[Pontuação],PontuaçõesClassetbl[Classe],Cálculos!$C12,PontuaçõesClassetbl[Tipo],Cálculos!AI$5)*Configurações!K15,\"\")","v":""},0.1425,{"$f":"SUMIFS(Configurações!E15:K15,Cálculos!AC12:AI12,\">0\")","v":0.15},{"v":0.95,"d":"95%"},4,"A"]
[null,null,{"$f":"IF(Configurações!C16=\"\",\"\",Configurações!C16)","v":""},"","","","","","","","","","","","","","","","","","","","","","","","","",{"$f":"IFERROR(AVERAGEIFS(PontuaçõesClassetbl[Pontuação],PontuaçõesClassetbl[Classe],Cálculos!$C13,PontuaçõesClassetbl[Tipo],Cálculos!AC$5)*Configurações!E16,\"\")","v":""},{"$f":"IFERROR(AVERAGEIFS(PontuaçõesClassetbl[Pontuação],PontuaçõesClassetbl[Classe],Cálculos!$C13,PontuaçõesClassetbl[Tipo],Cálculos!AD$5)*Configurações!F16,\"\")","v":""},{"$f":"IFERROR(AVERAGEIFS(PontuaçõesClassetbl[Pontuação],PontuaçõesClassetbl[Classe],Cálculos!$C13,PontuaçõesClassetbl[Tipo],Cálculos!AE$5)*Configurações!G16,\"\")","v":""},{"$f":"IFERROR(AVERAGEIFS(PontuaçõesClassetbl[Pontuação],PontuaçõesClassetbl[Classe],Cálculos!$C13,PontuaçõesClassetbl[Tipo],Cálculos!AF$5)*Configurações!H16,\"\")","v":""},{"$f":"IFERROR(AVERAGEIFS(PontuaçõesClassetbl[Pontuação],PontuaçõesClassetbl[Classe],Cálculos!$C13,PontuaçõesClassetbl[Tipo],Cálculos!AG$5)*Configurações!I16,\"\")","v":""},{"$f":"IFERROR(AVERAGEIFS(PontuaçõesClassetbl[Pontuação],PontuaçõesClassetbl[Classe],Cálculos!$C13,PontuaçõesClassetbl[Tipo],Cálculos!AH$5)*Configurações!J16,\"\")","v":""},{"$f":"IFERROR(AVERAGEIFS(PontuaçõesClassetbl[Pontuação],PontuaçõesClassetbl[Classe],Cálculos!$C13,PontuaçõesClassetbl[Tipo],Cálculos!AI$5)*Configurações!K16,\"\")","v":""},{"$f":"SUM(AC13:AI13)","v":0},{"$f":"SUMIFS(Configurações!E16:K16,Cálculos!AC13:AI13,\">0\")","v":0},{"$f":"IFERROR(AJ13/AK13,\"\")","v":""},"",""]
[{"$nulls":3},"","","","","","","","","","","","","","","","","","","","","","","","","",{"$f":"IFERROR(AVERAGEIFS(PontuaçõesClassetbl[Pontuação],PontuaçõesClassetbl[Classe],Cálculos!$C14,PontuaçõesClassetbl[Tipo],Cálculos!AC$5)*Configurações!E17,\"\")","v":""},{"$f":"IFERROR(AVERAGEIFS(PontuaçõesClassetbl[Pontuação],PontuaçõesClassetbl[Classe],Cálculos!$C14,PontuaçõesClassetbl[Tipo],Cálculos!AD$5)*Configurações!F17,\"\")","v":""},{"$f":"IFERROR(AVERAGEIFS(PontuaçõesClassetbl[Pontuação],PontuaçõesClassetbl[Classe],Cálculos!$C14,PontuaçõesClassetbl[Tipo],Cálculos!AE$5)*Configurações!G17,\"\")","v":""},{"$f":"IFERROR(AVERAGEIFS(PontuaçõesClassetbl[Pontuação],PontuaçõesClassetbl[Classe],Cálculos!$C14,PontuaçõesClassetbl[Tipo],Cálculos!AF$5)*Configurações!H17,\"\")","v":""},{"$f":"IFERROR(AVERAGEIFS(PontuaçõesClassetbl[Pontuação],PontuaçõesClassetbl[Classe],Cálculos!$C14,PontuaçõesClassetbl[Tipo],Cálculos!AG$5)*Configurações!I17,\"\")","v":""},{"$f":"IFERROR(AVERAGEIFS(PontuaçõesClassetbl[Pontuação],PontuaçõesClassetbl[Classe],Cálculos!$C14,PontuaçõesClassetbl[Tipo],Cálculos!AH$5)*Configurações!J17,\"\")","v":""},{"$f":"IFERROR(AVERAGEIFS(PontuaçõesClassetbl[Pontuação],PontuaçõesClassetbl[Classe],Cálculos!$C14,PontuaçõesClassetbl[Tipo],Cálculos!AI$5)*Configurações!K17,\"\")","v":""},0,{"$f":"SUMIFS(Configurações!E17:K17,Cálculos!AC14:AI14,\">0\")","v":0},"","",""]
[null,null,{"$f":"IF(Configurações!C18=\"\",\"\",Configurações!C18)","v":""},"","","","","","","","","","","","","","","","","","","","","","","","","",{"$f":"IFERROR(AVERAGEIFS(PontuaçõesClassetbl[Pontuação],PontuaçõesClassetbl[Classe],Cálculos!$C15,PontuaçõesClassetbl[Tipo],Cálculos!AC$5)*Configurações!E18,\"\")","v":""},{"$f":"IFERROR(AVERAGEIFS(PontuaçõesClassetbl[Pontuação],PontuaçõesClassetbl[Classe],Cálculos!$C15,PontuaçõesClassetbl[Tipo],Cálculos!AD$5)*Configurações!F18,\"\")","v":""},{"$f":"IFERROR(AVERAGEIFS(PontuaçõesClassetbl[Pontuação],PontuaçõesClassetbl[Classe],Cálculos!$C15,PontuaçõesClassetbl[Tipo],Cálculos!AE$5)*Configurações!G18,\"\")","v":""},{"$f":"IFERROR(AVERAGEIFS(PontuaçõesClassetbl[Pontuação],PontuaçõesClassetbl[Classe],Cálculos!$C15,PontuaçõesClassetbl[Tipo],Cálculos!AF$5)*Configurações!H18,\"\")","v":""},{"$f":"IFERROR(AVERAGEIFS(PontuaçõesClassetbl[Pontuação],PontuaçõesClassetbl[Classe],Cálculos!$C15,PontuaçõesClassetbl[Tipo],Cálculos!AG$5)*Configurações!I18,\"\")","v":""},{"$f":"IFERROR(AVERAGEIFS(PontuaçõesClassetbl[Pontuação],PontuaçõesClassetbl[Classe],Cálculos!$C15,PontuaçõesClassetbl[Tipo],Cálculos!AH$5)*Configurações!J18,\"\")","v":""},{"$f":"IFERROR(AVERAGEIFS(PontuaçõesClassetbl[Pontuação],PontuaçõesClassetbl[Classe],Cálculos!$C15,PontuaçõesClassetbl[Tipo],Cálculos!AI$5)*Configurações!K18,\"\")","v":""},0,{"$f":"SUMIFS(Configurações!E18:K18,Cálculos!AC15:AI15,\">0\")","v":0},"","",""]
[null,null,{"$f":"IF(Configurações!C19=\"\",\"\",Configurações!C19)","v":""},"","","","","","","","","","","","","","","","","","","","","","","","","",{"$f":"IFERROR(AVERAGEIFS(PontuaçõesClassetbl[Pontuação],PontuaçõesClassetbl[Classe],Cálculos!$C16,PontuaçõesClassetbl[Tipo],Cálculos!AC$5)*Configurações!E19,\"\")","v":""},{"$f":"IFERROR(AVERAGEIFS(PontuaçõesClassetbl[Pontuação],PontuaçõesClassetbl[Classe],Cálculos!$C16,PontuaçõesClassetbl[Tipo],Cálculos!AD$5)*Configurações!F19,\"\")","v":""},{"$f":"IFERROR(AVERAGEIFS(PontuaçõesClassetbl[Pontuação],PontuaçõesClassetbl[Classe],Cálculos!$C16,PontuaçõesClassetbl[Tipo],Cálculos!AE$5)*Configurações!G19,\"\")","v":""},{"$f":"IFERROR(AVERAGEIFS(PontuaçõesClassetbl[Pontuação],PontuaçõesClassetbl[Classe],Cálculos!$C16,PontuaçõesClassetbl[Tipo],Cálculos!AF$5)*Configurações!H19,\"\")","v":""},{"$f":"IFERROR(AVERAGEIFS(PontuaçõesClassetbl[Pontuação],PontuaçõesClassetbl[Classe],Cálculos!$C16,PontuaçõesClassetbl[Tipo],Cálculos!AG$5)*Configurações!I19,\"\")","v":""},{"$f":"IFERROR(AVERAGEIFS(PontuaçõesClassetbl[Pontuação],PontuaçõesClassetbl[Classe],Cálculos!$C16,PontuaçõesClassetbl[Tipo],Cálculos!AH$5)*Configurações!J19,\"\")","v":""},{"$f":"IFERROR(AVERAGEIFS(PontuaçõesClassetbl[Pontuação],PontuaçõesClassetbl[Classe],Cálculos!$C16,PontuaçõesClassetbl[Tipo],Cálculos!AI$5)*Configurações!K19,\"\")","v":""},0,{"$f":"SUMIFS(Configurações!E19:K19,Cálculos!AC16:AI16,\">0\")","v":0},"","",""]
[null,null,{"$f":"IF(Configurações!C20=\"\",\"\",Configurações!C20)","v":""},"","","","","","","","","","","","","","","","","","","","","","","","","",{"$f":"IFERROR(AVERAGEIFS(PontuaçõesClassetbl[Pontuação],PontuaçõesClassetbl[Classe],Cálculos!$C17,PontuaçõesClassetbl[Tipo],Cálculos!AC$5)*Configurações!E20,\"\")","v":""},{"$f":"IFERROR(AVERAGEIFS(PontuaçõesClassetbl[Pontuação],PontuaçõesClassetbl[Classe],Cálculos!$C17,PontuaçõesClassetbl[Tipo],Cálculos!AD$5)*Configurações!F20,\"\")","v":""},{"$f":"IFERROR(AVERAGEIFS(PontuaçõesClassetbl[Pontuação],PontuaçõesClassetbl[Classe],Cálculos!$C17,PontuaçõesClassetbl[Tipo],Cálculos!AE$5)*Configurações!G20,\"\")","v":""},{"$f":"IFERROR(AVERAGEIFS(PontuaçõesClassetbl[Pontuação],PontuaçõesClassetbl[Classe],Cálculos!$C17,PontuaçõesClassetbl[Tipo],Cálculos!AF$5)*Configurações!H20,\"\")","v":""},{"$f":"IFERROR(AVERAGEIFS(PontuaçõesClassetbl[Pontuação],PontuaçõesClassetbl[Classe],Cálculos!$C17,PontuaçõesClassetbl[Tipo],Cálculos!AG$5)*Configurações!I20,\"\")","v":""},{"$f":"IFERROR(AVERAGEIFS(PontuaçõesClassetbl[Pontuação],PontuaçõesClassetbl[Classe],Cálculos!$C17,PontuaçõesClassetbl[Tipo],Cálculos!AH$5)*Configurações!J20,\"\")","v":""},{"$f":"IFERROR(AVERAGEIFS(PontuaçõesClassetbl[Pontuação],PontuaçõesClassetbl[Classe],Cálculos!$C17,PontuaçõesClassetbl[Tipo],Cálculos!AI$5)*Configurações!K20,\"\")","v":""},0,{"$f":"SUMIFS(Configurações!E20:K20,Cálculos!AC17:AI17,\">0\")","v":0},"","",""]
[null,null,{"$f":"IF(Configurações!C21=\"\",\"\",Configurações!C21)","v":""},"","","","","","","","","","","","","","","","","","","","","","","","","",{"$f":"IFERROR(AVERAGEIFS(PontuaçõesClassetbl[Pontuação],PontuaçõesClassetbl[Classe],Cálculos!$C18,PontuaçõesClassetbl[Tipo],Cálculos!AC$5)*Configurações!E21,\"\")","v":""},{"$f":"IFERROR(AVERAGEIFS(PontuaçõesClassetbl[Pontuação],PontuaçõesClassetbl[Classe],Cálculos!$C18,PontuaçõesClassetbl[Tipo],Cálculos!AD$5)*Configurações!F21,\"\")","v":""},{"$f":"IFERROR(AVERAGEIFS(PontuaçõesClassetbl[Pontuação],PontuaçõesClassetbl[Classe],Cálculos!$C18,PontuaçõesClassetbl[Tipo],Cálculos!AE$5)*Configurações!G21,\"\")","v":""},{"$f":"IFERROR(AVERAGEIFS(PontuaçõesClassetbl[Pontuação],PontuaçõesClassetbl[Classe],Cálculos!$C18,PontuaçõesClassetbl[Tipo],Cálculos!AF$5)*Configurações!H21,\"\")","v":""},{"$f":"IFERROR(AVERAGEIFS(PontuaçõesClassetbl[Pontuação],PontuaçõesClassetbl[Classe],Cálculos!$C18,PontuaçõesClassetbl[Tipo],Cálculos!AG$5)*Configurações!I21,\"\")","v":""},{"$f":"IFERROR(AVERAGEIFS(PontuaçõesClassetbl[Pontuação],PontuaçõesClassetbl[Classe],Cálculos!$C18,PontuaçõesClassetbl[Tipo],Cálculos!AH$5)*Configurações!J21,\"\")","v":""},{"$f":"IFERROR(AVERAGEIFS(PontuaçõesClassetbl[Pontuação],PontuaçõesClassetbl[Classe],Cálculos!$C18,PontuaçõesClassetbl[Tipo],Cálculos!AI$5)*Configurações!K21,\"\")","v":""},0,{"$f":"SUMIFS(Configurações!E21:K21,Cálculos!AC18:AI18,\">0\")","v":0},"","",""]
[null,null,{"$f":"IF(Configurações!C22=\"\",\"\",Configurações!C22)","v":""},"","","","","","","","","","","","","","","","","","","","","","","","","",{"$f":"IFERROR(AVERAGEIFS(PontuaçõesClassetbl[Pontuação],PontuaçõesClassetbl[Classe],Cálculos!$C19,PontuaçõesClassetbl[Tipo],Cálculos!AC$5)*Configurações!E22,\"\")","v":""},{"$f":"IFERROR(AVERAGEIFS(PontuaçõesClassetbl[Pontuação],PontuaçõesClassetbl[Classe],Cálculos!$C19,PontuaçõesClassetbl[Tipo],Cálculos!AD$5)*Configurações!F22,\"\")","v":""},{"$f":"IFERROR(AVERAGEIFS(PontuaçõesClassetbl[Pontuação],PontuaçõesClassetbl[Classe],Cálculos!$C19,PontuaçõesClassetbl[Tipo],Cálculos!AE$5)*Configurações!G22,\"\")","v":""},{"$f":"IFERROR(AVERAGEIFS(PontuaçõesClassetbl[Pontuação],PontuaçõesClassetbl[Classe],Cálculos!$C19,PontuaçõesClassetbl[Tipo],Cálculos!AF$5)*Configurações!H22,\"\")","v":""},{"$f":"IFERROR(AVERAGEIFS(PontuaçõesClassetbl[Pontuação],PontuaçõesClassetbl[Classe],Cálculos!$C19,PontuaçõesClassetbl[Tipo],Cálculos!AG$5)*Configurações!I22,\"\")","v":""},{"$f":"IFERROR(AVERAGEIFS(PontuaçõesClassetbl[Pontuação],PontuaçõesClassetbl[Classe],Cálculos!$C19,PontuaçõesClassetbl[Tipo],Cálculos!AH$5)*Configurações!J22,\"\")","v":""},{"$f":"IFERROR(AVERAGEIFS(PontuaçõesClassetbl[Pontuação],PontuaçõesClassetbl[Classe],Cálculos!$C19,PontuaçõesClassetbl[Tipo],Cálculos!AI$5)*Configurações!K22,\"\")","v":""},0,{"$f":"SUMIFS(Configurações!E22:K22,Cálculos!AC19:AI19,\">0\")","v":0},"","",""]
[null,null,{"$f":"IF(Configurações!C23=\"\",\"\",Configurações!C23)","v":""},"","","","","","","","","","","","","","","","","","","","","","","","","",{"$f":"IFERROR(AVERAGEIFS(PontuaçõesClassetbl[Pontuação],PontuaçõesClassetbl[Classe],Cálculos!$C20,PontuaçõesClassetbl[Tipo],Cálculos!AC$5)*Configurações!E23,\"\")","v":""},{"$f":"IFERROR(AVERAGEIFS(PontuaçõesClassetbl[Pontuação],PontuaçõesClassetbl[Classe],Cálculos!$C20,PontuaçõesClassetbl[Tipo],Cálculos!AD$5)*Configurações!F23,\"\")","v":""},{"$f":"IFERROR(AVERAGEIFS(PontuaçõesClassetbl[Pontuação],PontuaçõesClassetbl[Classe],Cálculos!$C20,PontuaçõesClassetbl[Tipo],Cálculos!AE$5)*Configurações!G23,\"\")","v":""},{"$f":"IFERROR(AVERAGEIFS(PontuaçõesClassetbl[Pontuação],PontuaçõesClassetbl[Classe],Cálculos!$C20,PontuaçõesClassetbl[Tipo],Cálculos!AF$5)*Configurações!H23,\"\")","v":""},{"$f":"IFERROR(AVERAGEIFS(PontuaçõesClassetbl[Pontuação],PontuaçõesClassetbl[Classe],Cálculos!$C20,PontuaçõesClassetbl[Tipo],Cálculos!AG$5)*Configurações!I23,\"\")","v":""},{"$f":"IFERROR(AVERAGEIFS(PontuaçõesClassetbl[Pontuação],PontuaçõesClassetbl[Classe],Cálculos!$C20,PontuaçõesClassetbl[Tipo],Cálculos!AH$5)*Configurações!J23,\"\")","v":""},{"$f":"IFERROR(AVERAGEIFS(PontuaçõesClassetbl[Pontuação],PontuaçõesClassetbl[Classe],Cálculos!$C20,PontuaçõesClassetbl[Tipo],Cálculos!AI$5)*Configurações!K23,\"\")","v":""},0,{"$f":"SUMIFS(Configurações!E23:K23,Cálculos!AC20:AI20,\">0\")","v":0},"","",""]
[null,null,{"$f":"IF(Configurações!C24=\"\",\"\",Configurações!C24)","v":""},"","","","","","","","","","","","","","","","","","","","","","","","","",{"$f":"IFERROR(AVERAGEIFS(PontuaçõesClassetbl[Pontuação],PontuaçõesClassetbl[Classe],Cálculos!$C21,PontuaçõesClassetbl[Tipo],Cálculos!AC$5)*Configurações!E24,\"\")","v":""},{"$f":"IFERROR(AVERAGEIFS(PontuaçõesClassetbl[Pontuação],PontuaçõesClassetbl[Classe],Cálculos!$C21,PontuaçõesClassetbl[Tipo],Cálculos!AD$5)*Configurações!F24,\"\")","v":""},{"$f":"IFERROR(AVERAGEIFS(PontuaçõesClassetbl[Pontuação],PontuaçõesClassetbl[Classe],Cálculos!$C21,PontuaçõesClassetbl[Tipo],Cálculos!AE$5)*Configurações!G24,\"\")","v":""},{"$f":"IFERROR(AVERAGEIFS(PontuaçõesClassetbl[Pontuação],PontuaçõesClassetbl[Classe],Cálculos!$C21,PontuaçõesClassetbl[Tipo],Cálculos!AF$5)*Configurações!H24,\"\")","v":""},{"$f":"IFERROR(AVERAGEIFS(PontuaçõesClassetbl[Pontuação],PontuaçõesClassetbl[Classe],Cálculos!$C21,PontuaçõesClassetbl[Tipo],Cálculos!AG$5)*Configurações!I24,\"\")","v":""},{"$f":"IFERROR(AVERAGEIFS(PontuaçõesClassetbl[Pontuação],PontuaçõesClassetbl[Classe],Cálculos!$C21,PontuaçõesClassetbl[Tipo],Cálculos!AH$5)*Configurações!J24,\"\")","v":""},{"$f":"IFERROR(AVERAGEIFS(PontuaçõesClassetbl[Pontuação],PontuaçõesClassetbl[Classe],Cálculos!$C21,PontuaçõesClassetbl[Tipo],Cálculos!AI$5)*Configurações!K24,\"\")","v":""},0,{"$f":"SUMIFS(Configurações!E24:K24,Cálculos!AC21:AI21,\">0\")","v":0},"","",""]
[null,null,{"$f":"IF(Configurações!C25=\"\",\"\",Configurações!C25)","v":""},"","","","","","","","","","","","","","","","","","","","","","","","","",{"$f":"IFERROR(AVERAGEIFS(PontuaçõesClassetbl[Pontuação],PontuaçõesClassetbl[Classe],Cálculos!$C22,PontuaçõesClassetbl[Tipo],Cálculos!AC$5)*Configurações!E25,\"\")","v":""},{"$f":"IFERROR(AVERAGEIFS(PontuaçõesClassetbl[Pontuação],PontuaçõesClassetbl[Classe],Cálculos!$C22,PontuaçõesClassetbl[Tipo],Cálculos!AD$5)*Configurações!F25,\"\")","v":""},{"$f":"IFERROR(AVERAGEIFS(PontuaçõesClassetbl[Pontuação],PontuaçõesClassetbl[Classe],Cálculos!$C22,PontuaçõesClassetbl[Tipo],Cálculos!AE$5)*Configurações!G25,\"\")","v":""},{"$f":"IFERROR(AVERAGEIFS(PontuaçõesClassetbl[Pontuação],PontuaçõesClassetbl[Classe],Cálculos!$C22,PontuaçõesClassetbl[Tipo],Cálculos!AF$5)*Configurações!H25,\"\")","v":""},{"$f":"IFERROR(AVERAGEIFS(PontuaçõesClassetbl[Pontuação],PontuaçõesClassetbl[Classe],Cálculos!$C22,PontuaçõesClassetbl[Tipo],Cálculos!AG$5)*Configurações!I25,\"\")","v":""},{"$f":"IFERROR(AVERAGEIFS(PontuaçõesClassetbl[Pontuação],PontuaçõesClassetbl[Classe],Cálculos!$C22,PontuaçõesClassetbl[Tipo],Cálculos!AH$5)*Configurações!J25,\"\")","v":""},{"$f":"IFERROR(AVERAGEIFS(PontuaçõesClassetbl[Pontuação],PontuaçõesClassetbl[Classe],Cálculos!$C22,PontuaçõesClassetbl[Tipo],Cálculos!AI$5)*Configurações!K25,\"\")","v":""},0,{"$f":"SUMIFS(Configurações!E25:K25,Cálculos!AC22:AI22,\">0\")","v":0},"","",""]
[null,null,{"$f":"IF(Configurações!C26=\"\",\"\",Configurações!C26)","v":""},"","","","","","","","","","","","","","","","","","","","","","","","","",{"$f":"IFERROR(AVERAGEIFS(PontuaçõesClassetbl[Pontuação],PontuaçõesClassetbl[Classe],Cálculos!$C23,PontuaçõesClassetbl[Tipo],Cálculos!AC$5)*Configurações!E26,\"\")","v":""},{"$f":"IFERROR(AVERAGEIFS(PontuaçõesClassetbl[Pontuação],PontuaçõesClassetbl[Classe],Cálculos!$C23,PontuaçõesClassetbl[Tipo],Cálculos!AD$5)*Configurações!F26,\"\")","v":""},{"$f":"IFERROR(AVERAGEIFS(PontuaçõesClassetbl[Pontuação],PontuaçõesClassetbl[Classe],Cálculos!$C23,PontuaçõesClassetbl[Tipo],Cálculos!AE$5)*Configurações!G26,\"\")","v":""},{"$f":"IFERROR(AVERAGEIFS(PontuaçõesClassetbl[Pontuação],PontuaçõesClassetbl[Classe],Cálculos!$C23,PontuaçõesClassetbl[Tipo],Cálculos!AF$5)*Configurações!H26,\"\")","v":""},{"$f":"IFERROR(AVERAGEIFS(PontuaçõesClassetbl[Pontuação],PontuaçõesClassetbl[Classe],Cálculos!$C23,PontuaçõesClassetbl[Tipo],Cálculos!AG$5)*Configurações!I26,\"\")","v":""},{"$f":"IFERROR(AVERAGEIFS(PontuaçõesClassetbl[Pontuação],PontuaçõesClassetbl[Classe],Cálculos!$C23,PontuaçõesClassetbl[Tipo],Cálculos!AH$5)*Configurações!J26,\"\")","v":""},{"$f":"IFERROR(AVERAGEIFS(PontuaçõesClassetbl[Pontuação],PontuaçõesClassetbl[Classe],Cálculos!$C23,PontuaçõesClassetbl[Tipo],Cálculos!AI$5)*Configurações!K26,\"\")","v":""},0,{"$f":"SUMIFS(Configurações!E26:K26,Cálculos!AC23:AI23,\">0\")","v":0},"","",""]
[null,null,{"$f":"IF(Configurações!C27=\"\",\"\",Configurações!C27)","v":""},"","","","","","","","","","","","","","","","","","","","","","","","","",{"$f":"IFERROR(AVERAGEIFS(PontuaçõesClassetbl[Pontuação],PontuaçõesClassetbl[Classe],Cálculos!$C24,PontuaçõesClassetbl[Tipo],Cálculos!AC$5)*Configurações!E27,\"\")","v":""},{"$f":"IFERROR(AVERAGEIFS(PontuaçõesClassetbl[Pontuação],PontuaçõesClassetbl[Classe],Cálculos!$C24,PontuaçõesClassetbl[Tipo],Cálculos!AD$5)*Configurações!F27,\"\")","v":""},{"$f":"IFERROR(AVERAGEIFS(PontuaçõesClassetbl[Pontuação],PontuaçõesClassetbl[Classe],Cálculos!$C24,PontuaçõesClassetbl[Tipo],Cálculos!AE$5)*Configurações!G27,\"\")","v":""},{"$f":"IFERROR(AVERAGEIFS(PontuaçõesClassetbl[Pontuação],PontuaçõesClassetbl[Classe],Cálculos!$C24,PontuaçõesClassetbl[Tipo],Cálculos!AF$5)*Configurações!H27,\"\")","v":""},{"$f":"IFERROR(AVERAGEIFS(PontuaçõesClassetbl[Pontuação],PontuaçõesClassetbl[Classe],Cálculos!$C24,PontuaçõesClassetbl[Tipo],Cálculos!AG$5)*Configurações!I27,\"\")","v":""},{"$f":"IFERROR(AVERAGEIFS(PontuaçõesClassetbl[Pontuação],PontuaçõesClassetbl[Classe],Cálculos!$C24,PontuaçõesClassetbl[Tipo],Cálculos!AH$5)*Configurações!J27,\"\")","v":""},{"$f":"IFERROR(AVERAGEIFS(PontuaçõesClassetbl[Pontuação],PontuaçõesClassetbl[Classe],Cálculos!$C24,PontuaçõesClassetbl[Tipo],Cálculos!AI$5)*Configurações!K27,\"\")","v":""},0,{"$f":"SUMIFS(Configurações!E27:K27,Cálculos!AC24:AI24,\">0\")","v":0},"","",""]
[null,null,{"$f":"IF(Configurações!C28=\"\",\"\",Configurações!C28)","v":""},"","","","","","","","","","","","","","","","","","","","","","","","","",{"$f":"IFERROR(AVERAGEIFS(PontuaçõesClassetbl[Pontuação],PontuaçõesClassetbl[Classe],Cálculos!$C25,PontuaçõesClassetbl[Tipo],Cálculos!AC$5)*Configurações!E28,\"\")","v":""},{"$f":"IFERROR(AVERAGEIFS(PontuaçõesClassetbl[Pontuação],PontuaçõesClassetbl[Classe],Cálculos!$C25,PontuaçõesClassetbl[Tipo],Cálculos!AD$5)*Configurações!F28,\"\")","v":""},{"$f":"IFERROR(AVERAGEIFS(PontuaçõesClassetbl[Pontuação],PontuaçõesClassetbl[Classe],Cálculos!$C25,PontuaçõesClassetbl[Tipo],Cálculos!AE$5)*Configurações!G28,\"\")","v":""},{"$f":"IFERROR(AVERAGEIFS(PontuaçõesClassetbl[Pontuação],PontuaçõesClassetbl[Classe],Cálculos!$C25,PontuaçõesClassetbl[Tipo],Cálculos!AF$5)*Configurações!H28,\"\")","v":""},{"$f":"IFERROR(AVERAGEIFS(PontuaçõesClassetbl[Pontuação],PontuaçõesClassetbl[Classe],Cálculos!$C25,PontuaçõesClassetbl[Tipo],Cálculos!AG$5)*Configurações!I28,\"\")","v":""},{"$f":"IFERROR(AVERAGEIFS(PontuaçõesClassetbl[Pontuação],PontuaçõesClassetbl[Classe],Cálculos!$C25,PontuaçõesClassetbl[Tipo],Cálculos!AH$5)*Configurações!J28,\"\")","v":""},{"$f":"IFERROR(AVERAGEIFS(PontuaçõesClassetbl[Pontuação],PontuaçõesClassetbl[Classe],Cálculos!$C25,PontuaçõesClassetbl[Tipo],Cálculos!AI$5)*Configurações!K28,\"\")","v":""},0,{"$f":"SUMIFS(Configurações!E28:K28,Cálculos!AC25:AI25,\">0\")","v":0},"","",""]
[null,null,{"$f":"IF(Configurações!C29=\"\",\"\",Configurações!C29)","v":""},"","","","","","","","","","","","","","","","","","","","","","","","","",{"$f":"IFERROR(AVERAGEIFS(PontuaçõesClassetbl[Pontuação],PontuaçõesClassetbl[Classe],Cálculos!$C26,PontuaçõesClassetbl[Tipo],Cálculos!AC$5)*Configurações!E29,\"\")","v":""},{"$f":"IFERROR(AVERAGEIFS(PontuaçõesClassetbl[Pontuação],PontuaçõesClassetbl[Classe],Cálculos!$C26,PontuaçõesClassetbl[Tipo],Cálculos!AD$5)*Configurações!F29,\"\")","v":""},{"$f":"IFERROR(AVERAGEIFS(PontuaçõesClassetbl[Pontuação],PontuaçõesClassetbl[Classe],Cálculos!$C26,PontuaçõesClassetbl[Tipo],Cálculos!AE$5)*Configurações!G29,\"\")","v":""},{"$f":"IFERROR(AVERAGEIFS(PontuaçõesClassetbl[Pontuação],PontuaçõesClassetbl[Classe],Cálculos!$C26,PontuaçõesClassetbl[Tipo],Cálculos!AF$5)*Configurações!H29,\"\")","v":""},{"$f":"IFERROR(AVERAGEIFS(PontuaçõesClassetbl[Pontuação],PontuaçõesClassetbl[Classe],Cálculos!$C26,PontuaçõesClassetbl[Tipo],Cálculos!AG$5)*Configurações!I29,\"\")","v":""},{"$f":"IFERROR(AVERAGEIFS(PontuaçõesClassetbl[Pontuação],PontuaçõesClassetbl[Classe],Cálculos!$C26,PontuaçõesClassetbl[Tipo],Cálculos!AH$5)*Configurações!J29,\"\")","v":""},{"$f":"IFERROR(AVERAGEIFS(PontuaçõesClassetbl[Pontuação],PontuaçõesClassetbl[Classe],Cálculos!$C26,PontuaçõesClassetbl[Tipo],Cálculos!AI$5)*Configurações!K29,\"\")","v":""},0,{"$f":"SUMIFS(Configurações!E29:K29,Cálculos!AC26:AI26,\">0\")","v":0},"","",""]
[null,null,{"$f":"IF(Configurações!C30=\"\",\"\",Configurações!C30)","v":""},"","","","","","","","","","","","","","","","","","","","","","","","","",{"$f":"IFERROR(AVERAGEIFS(PontuaçõesClassetbl[Pontuação],PontuaçõesClassetbl[Classe],Cálculos!$C27,PontuaçõesClassetbl[Tipo],Cálculos!AC$5)*Configurações!E30,\"\")","v":""},{"$f":"IFERROR(AVERAGEIFS(PontuaçõesClassetbl[Pontuação],PontuaçõesClassetbl[Classe],Cálculos!$C27,PontuaçõesClassetbl[Tipo],Cálculos!AD$5)*Configurações!F30,\"\")","v":""},{"$f":"IFERROR(AVERAGEIFS(PontuaçõesClassetbl[Pontuação],PontuaçõesClassetbl[Classe],Cálculos!$C27,PontuaçõesClassetbl[Tipo],Cálculos!AE$5)*Configurações!G30,\"\")","v":""},{"$f":"IFERROR(AVERAGEIFS(PontuaçõesClassetbl[Pontuação],PontuaçõesClassetbl[Classe],Cálculos!$C27,PontuaçõesClassetbl[Tipo],Cálculos!AF$5)*Configurações!H30,\"\")","v":""},{"$f":"IFERROR(AVERAGEIFS(PontuaçõesClassetbl[Pontuação],PontuaçõesClassetbl[Classe],Cálculos!$C27,PontuaçõesClassetbl[Tipo],Cálculos!AG$5)*Configurações!I30,\"\")","v":""},{"$f":"IFERROR(AVERAGEIFS(PontuaçõesClassetbl[Pontuação],PontuaçõesClassetbl[Classe],Cálculos!$C27,PontuaçõesClassetbl[Tipo],Cálculos!AH$5)*Configurações!J30,\"\")","v":""},{"$f":"IFERROR(AVERAGEIFS(PontuaçõesClassetbl[Pontuação],PontuaçõesClassetbl[Classe],Cálculos!$C27,PontuaçõesClassetbl[Tipo],Cálculos!AI$5)*Configurações!K30,\"\")","v":""},0,{"$f":"SUMIFS(Configurações!E30:K30,Cálculos!AC27:AI27,\">0\")","v":0},"","",""]
[null,null,{"$f":"IF(Configurações!C31=\"\",\"\",Configurações!C31)","v":""},"","","","","","","","","","","","","","","","","","","","","","","","","",{"$f":"IFERROR(AVERAGEIFS(PontuaçõesClassetbl[Pontuação],PontuaçõesClassetbl[Classe],Cálculos!$C28,PontuaçõesClassetbl[Tipo],Cálculos!AC$5)*Configurações!E31,\"\")","v":""},{"$f":"IFERROR(AVERAGEIFS(PontuaçõesClassetbl[Pontuação],PontuaçõesClassetbl[Classe],Cálculos!$C28,PontuaçõesClassetbl[Tipo],Cálculos!AD$5)*Configurações!F31,\"\")","v":""},{"$f":"IFERROR(AVERAGEIFS(PontuaçõesClassetbl[Pontuação],PontuaçõesClassetbl[Classe],Cálculos!$C28,PontuaçõesClassetbl[Tipo],Cálculos!AE$5)*Configurações!G31,\"\")","v":""},{"$f":"IFERROR(AVERAGEIFS(PontuaçõesClassetbl[Pontuação],PontuaçõesClassetbl[Classe],Cálculos!$C28,PontuaçõesClassetbl[Tipo],Cálculos!AF$5)*Configurações!H31,\"\")","v":""},{"$f":"IFERROR(AVERAGEIFS(PontuaçõesClassetbl[Pontuação],PontuaçõesClassetbl[Classe],Cálculos!$C28,PontuaçõesClassetbl[Tipo],Cálculos!AG$5)*Configurações!I31,\"\")","v":""},{"$f":"IFERROR(AVERAGEIFS(PontuaçõesClassetbl[Pontuação],PontuaçõesClassetbl[Classe],Cálculos!$C28,PontuaçõesClassetbl[Tipo],Cálculos!AH$5)*Configurações!J31,\"\")","v":""},{"$f":"IFERROR(AVERAGEIFS(PontuaçõesClassetbl[Pontuação],PontuaçõesClassetbl[Classe],Cálculos!$C28,PontuaçõesClassetbl[Tipo],Cálculos!AI$5)*Configurações!K31,\"\")","v":""},0,{"$f":"SUMIFS(Configurações!E31:K31,Cálculos!AC28:AI28,\">0\")","v":0},"","",""]
[null,null,{"$f":"IF(Configurações!C32=\"\",\"\",Configurações!C32)","v":""},"","","","","","","","","","","","","","","","","","","","","","","","","",{"$f":"IFERROR(AVERAGEIFS(PontuaçõesClassetbl[Pontuação],PontuaçõesClassetbl[Classe],Cálculos!$C29,PontuaçõesClassetbl[Tipo],Cálculos!AC$5)*Configurações!E32,\"\")","v":""},{"$f":"IFERROR(AVERAGEIFS(PontuaçõesClassetbl[Pontuação],PontuaçõesClassetbl[Classe],Cálculos!$C29,PontuaçõesClassetbl[Tipo],Cálculos!AD$5)*Configurações!F32,\"\")","v":""},{"$f":"IFERROR(AVERAGEIFS(PontuaçõesClassetbl[Pontuação],PontuaçõesClassetbl[Classe],Cálculos!$C29,PontuaçõesClassetbl[Tipo],Cálculos!AE$5)*Configurações!G32,\"\")","v":""},{"$f":"IFERROR(AVERAGEIFS(PontuaçõesClassetbl[Pontuação],PontuaçõesClassetbl[Classe],Cálculos!$C29,PontuaçõesClassetbl[Tipo],Cálculos!AF$5)*Configurações!H32,\"\")","v":""},{"$f":"IFERROR(AVERAGEIFS(PontuaçõesClassetbl[Pontuação],PontuaçõesClassetbl[Classe],Cálculos!$C29,PontuaçõesClassetbl[Tipo],Cálculos!AG$5)*Configurações!I32,\"\")","v":""},{"$f":"IFERROR(AVERAGEIFS(PontuaçõesClassetbl[Pontuação],PontuaçõesClassetbl[Classe],Cálculos!$C29,PontuaçõesClassetbl[Tipo],Cálculos!AH$5)*Configurações!J32,\"\")","v":""},{"$f":"IFERROR(AVERAGEIFS(PontuaçõesClassetbl[Pontuação],PontuaçõesClassetbl[Classe],Cálculos!$C29,PontuaçõesClassetbl[Tipo],Cálculos!AI$5)*Configurações!K32,\"\")","v":""},0,{"$f":"SUMIFS(Configurações!E32:K32,Cálculos!AC29:AI29,\">0\")","v":0},"","",""]
[null,null,{"$f":"IF(Configurações!C33=\"\",\"\",Configurações!C33)","v":""},"","","","","","","","","","","","","","","","","","","","","","","","","",{"$f":"IFERROR(AVERAGEIFS(PontuaçõesClassetbl[Pontuação],PontuaçõesClassetbl[Classe],Cálculos!$C30,PontuaçõesClassetbl[Tipo],Cálculos!AC$5)*Configurações!E33,\"\")","v":""},{"$f":"IFERROR(AVERAGEIFS(PontuaçõesClassetbl[Pontuação],PontuaçõesClassetbl[Classe],Cálculos!$C30,PontuaçõesClassetbl[Tipo],Cálculos!AD$5)*Configurações!F33,\"\")","v":""},{"$f":"IFERROR(AVERAGEIFS(PontuaçõesClassetbl[Pontuação],PontuaçõesClassetbl[Classe],Cálculos!$C30,PontuaçõesClassetbl[Tipo],Cálculos!AE$5)*Configurações!G33,\"\")","v":""},{"$f":"IFERROR(AVERAGEIFS(PontuaçõesClassetbl[Pontuação],PontuaçõesClassetbl[Classe],Cálculos!$C30,PontuaçõesClassetbl[Tipo],Cálculos!AF$5)*Configurações!H33,\"\")","v":""},{"$f":"IFERROR(AVERAGEIFS(PontuaçõesClassetbl[Pontuação],PontuaçõesClassetbl[Classe],Cálculos!$C30,PontuaçõesClassetbl[Tipo],Cálculos!AG$5)*Configurações!I33,\"\")","v":""},{"$f":"IFERROR(AVERAGEIFS(PontuaçõesClassetbl[Pontuação],PontuaçõesClassetbl[Classe],Cálculos!$C30,PontuaçõesClassetbl[Tipo],Cálculos!AH$5)*Configurações!J33,\"\")","v":""},{"$f":"IFERROR(AVERAGEIFS(PontuaçõesClassetbl[Pontuação],PontuaçõesClassetbl[Classe],Cálculos!$C30,PontuaçõesClassetbl[Tipo],Cálculos!AI$5)*Configurações!K33,\"\")","v":""},0,{"$f":"SUMIFS(Configurações!E33:K33,Cálculos!AC30:AI30,\">0\")","v":0},"","",""]
[]
[]
[null,1,{"$f":"'Controlador de Pontuação'!C4&COUNTIF('Controlador de Pontuação'!$C$4:C4,'Controlador de Pontuação'!C4)","v":"Francês Moderno1"}]
[null,2,{"$f":"'Controlador de Pontuação'!C5&COUNTIF('Controlador de Pontuação'!$C$4:C5,'Controlador de Pontuação'!C5)","v":"Programação Avançada em Java1"}]
[null,3,{"$f":"'Controlador de Pontuação'!C6&COUNTIF('Controlador de Pontuação'!$C$4:C6,'Controlador de Pontuação'!C6)","v":"Espanhol1"}]
[null,4,{"$f":"'Controlador de Pontuação'!C7&COUNTIF('Controlador de Pontuação'!$C$4:C7,'Controlador de Pontuação'!C7)","v":"Física Teórica1"}]
[null,5,{"$f":"'Controlador de Pontuação'!C8&COUNTIF('Controlador de Pontuação'!$C$4:C8,'Controlador de Pontuação'!C8)","v":"Francês Moderno2"}]
[null,6,{"$f":"'Controlador de Pontuação'!C9&COUNTIF('Controlador de Pontuação'!$C$4:C9,'Controlador de Pontuação'!C9)","v":"Francês Moderno3"}]
[null,7,{"$f":"'Controlador de Pontuação'!C10&COUNTIF('Controlador de Pontuação'!$C$4:C10,'Controlador de Pontuação'!C10)","v":"Composição1"}]
[null,8,{"$f":"'Controlador de Pontuação'!C11&COUNTIF('Controlador de Pontuação'!$C$4:C11,'Controlador de Pontuação'!C11)","v":"Matemática 11"}]
[null,9,{"$f":"'Controlador de Pontuação'!C12&COUNTIF('Controlador de Pontuação'!$C$4:C12,'Controlador de Pontuação'!C12)","v":"Matemática 21"}]
[null,10,{"$f":"'Controlador de Pontuação'!C13&COUNTIF('Controlador de Pontuação'!$C$4:C14,'Controlador de Pontuação'!C13)","v":"Matemática 12"}]
[null,11,{"$f":"'Controlador de Pontuação'!C14&COUNTIF('Controlador de Pontuação'!$C$4:C14,'Controlador de Pontuação'!C14)","v":"Matemática 22"}]
[null,12,{"$f":"'Controlador de Pontuação'!C15&COUNTIF('Controlador de Pontuação'!$C$4:C15,'Controlador de Pontuação'!C15)","v":"0"}]
[null,13,{"$f":"'Controlador de Pontuação'!C16&COUNTIF('Controlador de Pontuação'!$C$4:C16,'Controlador de Pontuação'!C16)","v":"0"}]
[null,14,{"$f":"'Controlador de Pontuação'!C17&COUNTIF('Controlador de Pontuação'!$C$4:C17,'Controlador de Pontuação'!C17)","v":"0"}]
[null,15,{"$f":"'Controlador de Pontuação'!C18&COUNTIF('Controlador de Pontuação'!$C$4:C18,'Controlador de Pontuação'!C18)","v":"0"}]
[null,16,{"$f":"'Controlador de Pontuação'!C19&COUNTIF('Controlador de Pontuação'!$C$4:C19,'Controlador de Pontuação'!C19)","v":"0"}]
[null,17,{"$f":"'Controlador de Pontuação'!C20&COUNTIF('Controlador de Pontuação'!$C$4:C20,'Controlador de Pontuação'!C20)","v":"0"}]
[null,18,{"$f":"'Controlador de Pontuação'!C21&COUNTIF('Controlador de Pontuação'!$C$4:C21,'Controlador de Pontuação'!C21)","v":"0"}]
[null,19,{"$f":"'Controlador de Pontuação'!C22&COUNTIF('Controlador de Pontuação'!$C$4:C22,'Controlador de Pontuação'!C22)","v":"0"}]
[null,20,{"$f":"'Controlador de Pontuação'!C23&COUNTIF('Controlador de Pontuação'!$C$4:C23,'Controlador de Pontuação'!C23)","v":"0"}]
[null,21,{"$f":"'Controlador de Pontuação'!C24&COUNTIF('Controlador de Pontuação'!$C$4:C24,'Controlador de Pontuação'!C24)","v":"0"}]
[null,22,{"$f":"'Controlador de Pontuação'!C25&COUNTIF('Controlador de Pontuação'!$C$4:C25,'Controlador de Pontuação'!C25)","v":"0"}]
[null,23,{"$f":"'Controlador de Pontuação'!C26&COUNTIF('Controlador de Pontuação'!$C$4:C26,'Controlador de Pontuação'!C26)","v":"0"}]
[null,24,{"$f":"'Controlador de Pontuação'!C27&COUNTIF('Controlador de Pontuação'!$C$4:C27,'Controlador de Pontuação'!C27)","v":"0"}]
[null,25,{"$f":"'Controlador de Pontuação'!C28&COUNTIF('Controlador de Pontuação'!$C$4:C28,'Controlador de Pontuação'!C28)","v":"0"}]
[null,26,{"$f":"'Controlador de Pontuação'!C29&COUNTIF('Controlador de Pontuação'!$C$4:C29,'Controlador de Pontuação'!C29)","v":"0"}]
[null,27,{"$f":"'Controlador de Pontuação'!C30&COUNTIF('Controlador de Pontuação'!$C$4:C30,'Controlador de Pontuação'!C30)","v":"0"}]
[null,28,{"$f":"'Controlador de Pontuação'!C31&COUNTIF('Controlador de Pontuação'!$C$4:C31,'Controlador de Pontuação'!C31)","v":"0"}]
[null,29,{"$f":"'Controlador de Pontuação'!C32&COUNTIF('Controlador de Pontuação'!$C$4:C32,'Controlador de Pontuação'!C32)","v":"0"}]
[null,30,{"$f":"'Controlador de Pontuação'!C33&COUNTIF('Controlador de Pontuação'!$C$4:C33,'Controlador de Pontuação'!C33)","v":"0"}]
[null,31,{"$f":"'Controlador de Pontuação'!C34&COUNTIF('Controlador de Pontuação'!$C$4:C34,'Controlador de Pontuação'!C34)","v":"0"}]
[null,32,{"$f":"'Controlador de Pontuação'!C35&COUNTIF('Controlador de Pontuação'!$C$4:C35,'Controlador de Pontuação'!C35)","v":"0"}]
[null,33,{"$f":"'Controlador de Pontuação'!C36&COUNTIF('Controlador de Pontuação'!$C$4:C36,'Controlador de Pontuação'!C36)","v":"0"}]
[null,34,{"$f":"'Controlador de Pontuação'!C37&COUNTIF('Controlador de Pontuação'!$C$4:C37,'Controlador de Pontuação'!C37)","v":"0"}]
[null,35,{"$f":"'Controlador de Pontuação'!C38&COUNTIF('Controlador de Pontuação'!$C$4:C38,'Controlador de Pontuação'!C38)","v":"0"}]
[null,36,{"$f":"'Controlador de Pontuação'!C39&COUNTIF('Controlador de Pontuação'!$C$4:C39,'Controlador de Pontuação'!C39)","v":"0"}]
[null,37,{"$f":"'Controlador de Pontuação'!C40&COUNTIF('Controlador de Pontuação'!$C$4:C40,'Controlador de Pontuação'!C40)","v":"0"}]
[null,38,{"$f":"'Controlador de Pontuação'!C41&COUNTIF('Controlador de Pontuação'!$C$4:C41,'Controlador de Pontuação'!C41)","v":"0"}]
[null,39,{"$f":"'Controlador de Pontuação'!C42&COUNTIF('Controlador de Pontuação'!$C$4:C42,'Controlador de Pontuação'!C42)","v":"0"}]
[null,40,{"$f":"'Controlador de Pontuação'!C43&COUNTIF('Controlador de Pontuação'!$C$4:C43,'Controlador de Pontuação'!C43)","v":"0"}]
[null,41,{"$f":"'Controlador de Pontuação'!C44&COUNTIF('Controlador de Pontuação'!$C$4:C44,'Controlador de Pontuação'!C44)","v":"0"}]
[null,42,{"$f":"'Controlador de Pontuação'!C45&COUNTIF('Controlador de Pontuação'!$C$4:C45,'Controlador de Pontuação'!C45)","v":"0"}]
[null,43,{"$f":"'Controlador de Pontuação'!C46&COUNTIF('Controlador de Pontuação'!$C$4:C46,'Controlador de Pontuação'!C46)","v":"0"}]
[null,44,{"$f":"'Controlador de Pontuação'!C47&COUNTIF('Controlador de Pontuação'!$C$4:C47,'Controlador de Pontuação'!C47)","v":"0"}]
[null,45,{"$f":"'Controlador de Pontuação'!C48&COUNTIF('Controlador de Pontuação'!$C$4:C48,'Controlador de Pontuação'!C48)","v":"0"}]
[null,46,{"$f":"'Controlador de Pontuação'!C49&COUNTIF('Controlador de Pontuação'!$C$4:C49,'Controlador de Pontuação'!C49)","v":"0"}]
[null,47,{"$f":"'Controlador de Pontuação'!C50&COUNTIF('Controlador de Pontuação'!$C$4:C50,'Controlador de Pontuação'!C50)","v":"0"}]
[null,48,{"$f":"'Controlador de Pontuação'!C51&COUNTIF('Controlador de Pontuação'!$C$4:C51,'Controlador de Pontuação'!C51)","v":"0"}]
[null,49,{"$f":"'Controlador de Pontuação'!C52&COUNTIF('Controlador de Pontuação'!$C$4:C52,'Controlador de Pontuação'!C52)","v":"0"}]
[null,50,{"$f":"'Controlador de Pontuação'!C53&COUNTIF('Controlador de Pontuação'!$C$4:C53,'Controlador de Pontuação'!C53)","v":"0"}]
[null,51,{"$f":"'Controlador de Pontuação'!C54&COUNTIF('Controlador de Pontuação'!$C$4:C54,'Controlador de Pontuação'!C54)","v":"0"}]
[null,52,{"$f":"'Controlador de Pontuação'!C55&COUNTIF('Controlador de Pontuação'!$C$4:C55,'Controlador de Pontuação'!C55)","v":"0"}]
[null,53,{"$f":"'Controlador de Pontuação'!C56&COUNTIF('Controlador de Pontuação'!$C$4:C56,'Controlador de Pontuação'!C56)","v":"0"}]
[null,54,{"$f":"'Controlador de Pontuação'!C57&COUNTIF('Controlador de Pontuação'!$C$4:C57,'Controlador de Pontuação'!C57)","v":"0"}]
[null,55,{"$f":"'Controlador de Pontuação'!C58&COUNTIF('Controlador de Pontuação'!$C$4:C58,'Controlador de Pontuação'!C58)","v":"0"}]
[null,56,{"$f":"'Controlador de Pontuação'!C59&COUNTIF('Controlador de Pontuação'!$C$4:C59,'Controlador de Pontuação'!C59)","v":"0"}]
[null,57,{"$f":"'Controlador de Pontuação'!C60&COUNTIF('Controlador de Pontuação'!$C$4:C60,'Controlador de Pontuação'!C60)","v":"0"}]
[null,58,{"$f":"'Controlador de Pontuação'!C61&COUNTIF('Controlador de Pontuação'!$C$4:C61,'Controlador de Pontuação'!C61)","v":"0"}]
[null,59,{"$f":"'Controlador de Pontuação'!C62&COUNTIF('Controlador de Pontuação'!$C$4:C62,'Controlador de Pontuação'!C62)","v":"0"}]
[null,60,{"$f":"'Controlador de Pontuação'!C63&COUNTIF('Controlador de Pontuação'!$C$4:C63,'Controlador de Pontuação'!C63)","v":"0"}]
[null,61,{"$f":"'Controlador de Pontuação'!C64&COUNTIF('Controlador de Pontuação'!$C$4:C64,'Controlador de Pontuação'!C64)","v":"0"}]
[null,62,{"$f":"'Controlador de Pontuação'!C65&COUNTIF('Controlador de Pontuação'!$C$4:C65,'Controlador de Pontuação'!C65)","v":"0"}]
[null,63,{"$f":"'Controlador de Pontuação'!C66&COUNTIF('Controlador de Pontuação'!$C$4:C66,'Controlador de Pontuação'!C66)","v":"0"}]
[null,64,{"$f":"'Controlador de Pontuação'!C67&COUNTIF('Controlador de Pontuação'!$C$4:C67,'Controlador de Pontuação'!C67)","v":"0"}]
[null,65,{"$f":"'Controlador de Pontuação'!C68&COUNTIF('Controlador de Pontuação'!$C$4:C68,'Controlador de Pontuação'!C68)","v":"0"}]
[null,66,{"$f":"'Controlador de Pontuação'!C69&COUNTIF('Controlador de Pontuação'!$C$4:C69,'Controlador de Pontuação'!C69)","v":"0"}]
[null,67,{"$f":"'Controlador de Pontuação'!C70&COUNTIF('Controlador de Pontuação'!$C$4:C70,'Controlador de Pontuação'!C70)","v":"0"}]
[null,68,{"$f":"'Controlador de Pontuação'!C71&COUNTIF('Controlador de Pontuação'!$C$4:C71,'Controlador de Pontuação'!C71)","v":"0"}]
[null,69,{"$f":"'Controlador de Pontuação'!C72&COUNTIF('Controlador de Pontuação'!$C$4:C72,'Controlador de Pontuação'!C72)","v":"0"}]
[null,70,{"$f":"'Controlador de Pontuação'!C73&COUNTIF('Controlador de Pontuação'!$C$4:C73,'Controlador de Pontuação'!C73)","v":"0"}]
[null,71,{"$f":"'Controlador de Pontuação'!C74&COUNTIF('Controlador de Pontuação'!$C$4:C74,'Controlador de Pontuação'!C74)","v":"0"}]
[null,72,{"$f":"'Controlador de Pontuação'!C75&COUNTIF('Controlador de Pontuação'!$C$4:C75,'Controlador de Pontuação'!C75)","v":"0"}]
[null,73,{"$f":"'Controlador de Pontuação'!C76&COUNTIF('Controlador de Pontuação'!$C$4:C76,'Controlador de Pontuação'!C76)","v":"0"}]
[null,74,{"$f":"'Controlador de Pontuação'!C77&COUNTIF('Controlador de Pontuação'!$C$4:C77,'Controlador de Pontuação'!C77)","v":"0"}]
[null,75,{"$f":"'Controlador de Pontuação'!C78&COUNTIF('Controlador de Pontuação'!$C$4:C78,'Controlador de Pontuação'!C78)","v":"0"}]
[null,76,{"$f":"'Controlador de Pontuação'!C79&COUNTIF('Controlador de Pontuação'!$C$4:C79,'Controlador de Pontuação'!C79)","v":"0"}]
[null,77,{"$f":"'Controlador de Pontuação'!C80&COUNTIF('Controlador de Pontuação'!$C$4:C80,'Controlador de Pontuação'!C80)","v":"0"}]
[null,78,{"$f":"'Controlador de Pontuação'!C81&COUNTIF('Controlador de Pontuação'!$C$4:C81,'Controlador de Pontuação'!C81)","v":"0"}]
[null,79,{"$f":"'Controlador de Pontuação'!C82&COUNTIF('Controlador de Pontuação'!$C$4:C82,'Controlador de Pontuação'!C82)","v":"0"}]
[null,80,{"$f":"'Controlador de Pontuação'!C83&COUNTIF('Controlador de Pontuação'!$C$4:C83,'Controlador de Pontuação'!C83)","v":"0"}]
[null,81,{"$f":"'Controlador de Pontuação'!C84&COUNTIF('Controlador de Pontuação'!$C$4:C84,'Controlador de Pontuação'!C84)","v":"0"}]
[null,82,{"$f":"'Controlador de Pontuação'!C85&COUNTIF('Controlador de Pontuação'!$C$4:C85,'Controlador de Pontuação'!C85)","v":"0"}]
[null,83,{"$f":"'Controlador de Pontuação'!C86&COUNTIF('Controlador de Pontuação'!$C$4:C86,'Controlador de Pontuação'!C86)","v":"0"}]
[null,84,{"$f":"'Controlador de Pontuação'!C87&COUNTIF('Controlador de Pontuação'!$C$4:C87,'Controlador de Pontuação'!C87)","v":"0"}]
[null,85,{"$f":"'Controlador de Pontuação'!C88&COUNTIF('Controlador de Pontuação'!$C$4:C88,'Controlador de Pontuação'!C88)","v":"0"}]
[null,86,{"$f":"'Controlador de Pontuação'!C89&COUNTIF('Controlador de Pontuação'!$C$4:C89,'Controlador de Pontuação'!C89)","v":"0"}]
[null,87,{"$f":"'Controlador de Pontuação'!C90&COUNTIF('Controlador de Pontuação'!$C$4:C90,'Controlador de Pontuação'!C90)","v":"0"}]
[null,88,{"$f":"'Controlador de Pontuação'!C91&COUNTIF('Controlador de Pontuação'!$C$4:C91,'Controlador de Pontuação'!C91)","v":"0"}]
[null,89,{"$f":"'Controlador de Pontuação'!C92&COUNTIF('Controlador de Pontuação'!$C$4:C92,'Controlador de Pontuação'!C92)","v":"0"}]
[null,90,{"$f":"'Controlador de Pontuação'!C93&COUNTIF('Controlador de Pontuação'!$C$4:C93,'Controlador de Pontuação'!C93)","v":"0"}]
[null,91,{"$f":"'Controlador de Pontuação'!C94&COUNTIF('Controlador de Pontuação'!$C$4:C94,'Controlador de Pontuação'!C94)","v":"0"}]
[null,92,{"$f":"'Controlador de Pontuação'!C95&COUNTIF('Controlador de Pontuação'!$C$4:C95,'Controlador de Pontuação'!C95)","v":"0"}]
[null,93,{"$f":"'Controlador de Pontuação'!C96&COUNTIF('Controlador de Pontuação'!$C$4:C96,'Controlador de Pontuação'!C96)","v":"0"}]
[null,94,{"$f":"'Controlador de Pontuação'!C97&COUNTIF('Controlador de Pontuação'!$C$4:C97,'Controlador de Pontuação'!C97)","v":"0"}]
[null,95,{"$f":"'Controlador de Pontuação'!C98&COUNTIF('Controlador de Pontuação'!$C$4:C98,'Controlador de Pontuação'!C98)","v":"0"}]
[null,96,{"$f":"'Controlador de Pontuação'!C99&COUNTIF('Controlador de Pontuação'!$C$4:C99,'Controlador de Pontuação'!C99)","v":"0"}]
[null,97,{"$f":"'Controlador de Pontuação'!C100&COUNTIF('Controlador de Pontuação'!$C$4:C100,'Controlador de Pontuação'!C100)","v":"0"}]
[null,98,{"$f":"'Controlador de Pontuação'!C101&COUNTIF('Controlador de Pontuação'!$C$4:C101,'Controlador de Pontuação'!C101)","v":"0"}]
[null,99,{"$f":"'Controlador de Pontuação'!C102&COUNTIF('Controlador de Pontuação'!$C$4:C102,'Controlador de Pontuação'!C102)","v":"0"}]
[null,100,{"$f":"'Controlador de Pontuação'!C103&COUNTIF('Controlador de Pontuação'!$C$4:C103,'Controlador de Pontuação'!C103)","v":"0"}]
[null,101,{"$f":"'Controlador de Pontuação'!C104&COUNTIF('Controlador de Pontuação'!$C$4:C104,'Controlador de Pontuação'!C104)","v":"0"}]
[null,102,{"$f":"'Controlador de Pontuação'!C105&COUNTIF('Controlador de Pontuação'!$C$4:C105,'Controlador de Pontuação'!C105)","v":"0"}]
[null,103,{"$f":"'Controlador de Pontuação'!C106&COUNTIF('Controlador de Pontuação'!$C$4:C106,'Controlador de Pontuação'!C106)","v":"0"}]
[null,104,{"$f":"'Controlador de Pontuação'!C107&COUNTIF('Controlador de Pontuação'!$C$4:C107,'Controlador de Pontuação'!C107)","v":"0"}]
[null,105,{"$f":"'Controlador de Pontuação'!C108&COUNTIF('Controlador de Pontuação'!$C$4:C108,'Controlador de Pontuação'!C108)","v":"0"}]
[null,106,{"$f":"'Controlador de Pontuação'!C109&COUNTIF('Controlador de Pontuação'!$C$4:C109,'Controlador de Pontuação'!C109)","v":"0"}]
[null,107,{"$f":"'Controlador de Pontuação'!C110&COUNTIF('Controlador de Pontuação'!$C$4:C110,'Controlador de Pontuação'!C110)","v":"0"}]
[null,108,{"$f":"'Controlador de Pontuação'!C111&COUNTIF('Controlador de Pontuação'!$C$4:C111,'Controlador de Pontuação'!C111)","v":"0"}]
[null,109,{"$f":"'Controlador de Pontuação'!C112&COUNTIF('Controlador de Pontuação'!$C$4:C112,'Controlador de Pontuação'!C112)","v":"0"}]
[null,110,{"$f":"'Controlador de Pontuação'!C113&COUNTIF('Controlador de Pontuação'!$C$4:C113,'Controlador de Pontuação'!C113)","v":"0"}]
[null,111,{"$f":"'Controlador de Pontuação'!C114&COUNTIF('Controlador de Pontuação'!$C$4:C114,'Controlador de Pontuação'!C114)","v":"0"}]
[null,112,{"$f":"'Controlador de Pontuação'!C115&COUNTIF('Controlador de Pontuação'!$C$4:C115,'Controlador de Pontuação'!C115)","v":"0"}]
[null,113,{"$f":"'Controlador de Pontuação'!C116&COUNTIF('Controlador de Pontuação'!$C$4:C116,'Controlador de Pontuação'!C116)","v":"0"}]
[null,114,{"$f":"'Controlador de Pontuação'!C117&COUNTIF('Controlador de Pontuação'!$C$4:C117,'Controlador de Pontuação'!C117)","v":"0"}]
[null,115,{"$f":"'Controlador de Pontuação'!C118&COUNTIF('Controlador de Pontuação'!$C$4:C118,'Controlador de Pontuação'!C118)","v":"0"}]
[null,116,{"$f":"'Controlador de Pontuação'!C119&COUNTIF('Controlador de Pontuação'!$C$4:C119,'Controlador de Pontuação'!C119)","v":"0"}]
[null,117,{"$f":"'Controlador de Pontuação'!C120&COUNTIF('Controlador de Pontuação'!$C$4:C120,'Controlador de Pontuação'!C120)","v":"0"}]
[null,118,{"$f":"'Controlador de Pontuação'!C121&COUNTIF('Controlador de Pontuação'!$C$4:C121,'Controlador de Pontuação'!C121)","v":"0"}]
[null,119,{"$f":"'Controlador de Pontuação'!C122&COUNTIF('Controlador de Pontuação'!$C$4:C122,'Controlador de Pontuação'!C122)","v":"0"}]
[null,120,{"$f":"'Controlador de Pontuação'!C123&COUNTIF('Controlador de Pontuação'!$C$4:C123,'Controlador de Pontuação'!C123)","v":"0"}]
[null,121,{"$f":"'Controlador de Pontuação'!C124&COUNTIF('Controlador de Pontuação'!$C$4:C124,'Controlador de Pontuação'!C124)","v":"0"}]
[null,122,{"$f":"'Controlador de Pontuação'!C125&COUNTIF('Controlador de Pontuação'!$C$4:C125,'Controlador de Pontuação'!C125)","v":"0"}]
[null,123,{"$f":"'Controlador de Pontuação'!C126&COUNTIF('Controlador de Pontuação'!$C$4:C126,'Controlador de Pontuação'!C126)","v":"0"}]
[null,124,{"$f":"'Controlador de Pontuação'!C127&COUNTIF('Controlador de Pontuação'!$C$4:C127,'Controlador de Pontuação'!C127)","v":"0"}]
[null,125,{"$f":"'Controlador de Pontuação'!C128&COUNTIF('Controlador de Pontuação'!$C$4:C128,'Controlador de Pontuação'!C128)","v":"0"}]
[null,126,{"$f":"'Controlador de Pontuação'!C129&COUNTIF('Controlador de Pontuação'!$C$4:C129,'Controlador de Pontuação'!C129)","v":"0"}]
[null,127,{"$f":"'Controlador de Pontuação'!C130&COUNTIF('Controlador de Pontuação'!$C$4:C130,'Controlador de Pontuação'!C130)","v":"0"}]
[null,128,{"$f":"'Controlador de Pontuação'!C131&COUNTIF('Controlador de Pontuação'!$C$4:C131,'Controlador de Pontuação'!C131)","v":"0"}]
[null,129,{"$f":"'Controlador de Pontuação'!C132&COUNTIF('Controlador de Pontuação'!$C$4:C132,'Controlador de Pontuação'!C132)","v":"0"}]
[null,130,{"$f":"'Controlador de Pontuação'!C133&COUNTIF('Controlador de Pontuação'!$C$4:C133,'Controlador de Pontuação'!C133)","v":"0"}]
[null,131,{"$f":"'Controlador de Pontuação'!C134&COUNTIF('Controlador de Pontuação'!$C$4:C134,'Controlador de Pontuação'!C134)","v":"0"}]
[null,132,{"$f":"'Controlador de Pontuação'!C135&COUNTIF('Controlador de Pontuação'!$C$4:C135,'Controlador de Pontuação'!C135)","v":"0"}]
[null,133,{"$f":"'Controlador de Pontuação'!C136&COUNTIF('Controlador de Pontuação'!$C$4:C136,'Controlador de Pontuação'!C136)","v":"0"}]
[null,134,{"$f":"'Controlador de Pontuação'!C137&COUNTIF('Controlador de Pontuação'!$C$4:C137,'Controlador de Pontuação'!C137)","v":"0"}]
[null,135,{"$f":"'Controlador de Pontuação'!C138&COUNTIF('Controlador de Pontuação'!$C$4:C138,'Controlador de Pontuação'!C138)","v":"0"}]
[null,136,{"$f":"'Controlador de Pontuação'!C139&COUNTIF('Controlador de Pontuação'!$C$4:C139,'Controlador de Pontuação'!C139)","v":"0"}]
[null,137,{"$f":"'Controlador de Pontuação'!C140&COUNTIF('Controlador de Pontuação'!$C$4:C140,'Controlador de Pontuação'!C140)","v":"0"}]
[null,138,{"$f":"'Controlador de Pontuação'!C141&COUNTIF('Controlador de Pontuação'!$C$4:C141,'Controlador de Pontuação'!C141)","v":"0"}]
[null,139,{"$f":"'Controlador de Pontuação'!C142&COUNTIF('Controlador de Pontuação'!$C$4:C142,'Controlador de Pontuação'!C142)","v":"0"}]
[null,140,{"$f":"'Controlador de Pontuação'!C143&COUNTIF('Controlador de Pontuação'!$C$4:C143,'Controlador de Pontuação'!C143)","v":"0"}]
[null,141,{"$f":"'Controlador de Pontuação'!C144&COUNTIF('Controlador de Pontuação'!$C$4:C144,'Controlador de Pontuação'!C144)","v":"0"}]
[null,142,{"$f":"'Controlador de Pontuação'!C145&COUNTIF('Controlador de Pontuação'!$C$4:C145,'Controlador de Pontuação'!C145)","v":"0"}]
[null,143,{"$f":"'Controlador de Pontuação'!C146&COUNTIF('Controlador de Pontuação'!$C$4:C146,'Controlador de Pontuação'!C146)","v":"0"}]
[null,144,{"$f":"'Controlador de Pontuação'!C147&COUNTIF('Controlador de Pontuação'!$C$4:C147,'Controlador de Pontuação'!C147)","v":"0"}]
[null,145,{"$f":"'Controlador de Pontuação'!C148&COUNTIF('Controlador de Pontuação'!$C$4:C148,'Controlador de Pontuação'!C148)","v":"0"}]
[null,146,{"$f":"'Controlador de Pontuação'!C149&COUNTIF('Controlador de Pontuação'!$C$4:C149,'Controlador de Pontuação'!C149)","v":"0"}]
[null,147,{"$f":"'Controlador de Pontuação'!C150&COUNTIF('Controlador de Pontuação'!$C$4:C150,'Controlador de Pontuação'!C150)","v":"0"}]
[null,148,{"$f":"'Controlador de Pontuação'!C151&COUNTIF('Controlador de Pontuação'!$C$4:C151,'Controlador de Pontuação'!C151)","v":"0"}]
[null,149,{"$f":"'Controlador de Pontuação'!C152&COUNTIF('Controlador de Pontuação'!$C$4:C152,'Controlador de Pontuação'!C152)","v":"0"}]
[null,150,{"$f":"'Controlador de Pontuação'!C153&COUNTIF('Controlador de Pontuação'!$C$4:C153,'Controlador de Pontuação'!C153)","v":"0"}]
[null,151,{"$f":"'Controlador de Pontuação'!C154&COUNTIF('Controlador de Pontuação'!$C$4:C154,'Controlador de Pontuação'!C154)","v":"0"}]
[null,152,{"$f":"'Controlador de Pontuação'!C155&COUNTIF('Controlador de Pontuação'!$C$4:C155,'Controlador de Pontuação'!C155)","v":"0"}]
[null,153,{"$f":"'Controlador de Pontuação'!C156&COUNTIF('Controlador de Pontuação'!$C$4:C156,'Controlador de Pontuação'!C156)","v":"0"}]
[null,154,{"$f":"'Controlador de Pontuação'!C157&COUNTIF('Controlador de Pontuação'!$C$4:C157,'Controlador de Pontuação'!C157)","v":"0"}]
[null,155,{"$f":"'Controlador de Pontuação'!C158&COUNTIF('Controlador de Pontuação'!$C$4:C158,'Controlador de Pontuação'!C158)","v":"0"}]
[null,156,{"$f":"'Controlador de Pontuação'!C159&COUNTIF('Controlador de Pontuação'!$C$4:C159,'Controlador de Pontuação'!C159)","v":"0"}]
[null,157,{"$f":"'Controlador de Pontuação'!C160&COUNTIF('Controlador de Pontuação'!$C$4:C160,'Controlador de Pontuação'!C160)","v":"0"}]
[null,158,{"$f":"'Controlador de Pontuação'!C161&COUNTIF('Controlador de Pontuação'!$C$4:C161,'Controlador de Pontuação'!C161)","v":"0"}]
[null,159,{"$f":"'Controlador de Pontuação'!C162&COUNTIF('Controlador de Pontuação'!$C$4:C162,'Controlador de Pontuação'!C162)","v":"0"}]
[null,160,{"$f":"'Controlador de Pontuação'!C163&COUNTIF('Controlador de Pontuação'!$C$4:C163,'Controlador de Pontuação'!C163)","v":"0"}]
[null,161,{"$f":"'Controlador de Pontuação'!C164&COUNTIF('Controlador de Pontuação'!$C$4:C164,'Controlador de Pontuação'!C164)","v":"0"}]
[null,162,{"$f":"'Controlador de Pontuação'!C165&COUNTIF('Controlador de Pontuação'!$C$4:C165,'Controlador de Pontuação'!C165)","v":"0"}]
[null,163,{"$f":"'Controlador de Pontuação'!C166&COUNTIF('Controlador de Pontuação'!$C$4:C166,'Controlador de Pontuação'!C166)","v":"0"}]
[null,164,{"$f":"'Controlador de Pontuação'!C167&COUNTIF('Controlador de Pontuação'!$C$4:C167,'Controlador de Pontuação'!C167)","v":"0"}]
[null,165,{"$f":"'Controlador de Pontuação'!C168&COUNTIF('Controlador de Pontuação'!$C$4:C168,'Controlador de Pontuação'!C168)","v":"0"}]
[null,166,{"$f":"'Controlador de Pontuação'!C169&COUNTIF('Controlador de Pontuação'!$C$4:C169,'Controlador de Pontuação'!C169)","v":"0"}]
[null,167,{"$f":"'Controlador de Pontuação'!C170&COUNTIF('Controlador de Pontuação'!$C$4:C170,'Controlador de Pontuação'!C170)","v":"0"}]
[null,168,{"$f":"'Controlador de Pontuação'!C171&COUNTIF('Controlador de Pontuação'!$C$4:C171,'Controlador de Pontuação'!C171)","v":"0"}]
[null,169,{"$f":"'Controlador de Pontuação'!C172&COUNTIF('Controlador de Pontuação'!$C$4:C172,'Controlador de Pontuação'!C172)","v":"0"}]
[null,170,{"$f":"'Controlador de Pontuação'!C173&COUNTIF('Controlador de Pontuação'!$C$4:C173,'Controlador de Pontuação'!C173)","v":"0"}]
[null,171,{"$f":"'Controlador de Pontuação'!C174&COUNTIF('Controlador de Pontuação'!$C$4:C174,'Controlador de Pontuação'!C174)","v":"0"}]
[null,172,{"$f":"'Controlador de Pontuação'!C175&COUNTIF('Controlador de Pontuação'!$C$4:C175,'Controlador de Pontuação'!C175)","v":"0"}]
[null,173,{"$f":"'Controlador de Pontuação'!C176&COUNTIF('Controlador de Pontuação'!$C$4:C176,'Controlador de Pontuação'!C176)","v":"0"}]
[null,174,{"$f":"'Controlador de Pontuação'!C177&COUNTIF('Controlador de Pontuação'!$C$4:C177,'Controlador de Pontuação'!C177)","v":"0"}]
[null,175,{"$f":"'Controlador de Pontuação'!C178&COUNTIF('Controlador de Pontuação'!$C$4:C178,'Controlador de Pontuação'!C178)","v":"0"}]
[null,176,{"$f":"'Controlador de Pontuação'!C179&COUNTIF('Controlador de Pontuação'!$C$4:C179,'Controlador de Pontuação'!C179)","v":"0"}]
[null,177,{"$f":"'Controlador de Pontuação'!C180&COUNTIF('Controlador de Pontuação'!$C$4:C180,'Controlador de Pontuação'!C180)","v":"0"}]
[null,178,{"$f":"'Controlador de Pontuação'!C181&COUNTIF('Controlador de Pontuação'!$C$4:C181,'Controlador de Pontuação'!C181)","v":"0"}]
[null,179,{"$f":"'Controlador de Pontuação'!C182&COUNTIF('Controlador de Pontuação'!$C$4:C182,'Controlador de Pontuação'!C182)","v":"0"}]
[null,180,{"$f":"'Controlador de Pontuação'!C183&COUNTIF('Controlador de Pontuação'!$C$4:C183,'Controlador de Pontuação'!C183)","v":"0"}]
[null,181,{"$f":"'Controlador de Pontuação'!C184&COUNTIF('Controlador de Pontuação'!$C$4:C184,'Controlador de Pontuação'!C184)","v":"0"}]
[null,182,{"$f":"'Controlador de Pontuação'!C185&COUNTIF('Controlador de Pontuação'!$C$4:C185,'Controlador de Pontuação'!C185)","v":"0"}]
[null,183,{"$f":"'Controlador de Pontuação'!C186&COUNTIF('Controlador de Pontuação'!$C$4:C186,'Controlador de Pontuação'!C186)","v":"0"}]
[null,184,{"$f":"'Controlador de Pontuação'!C187&COUNTIF('Controlador de Pontuação'!$C$4:C187,'Controlador de Pontuação'!C187)","v":"0"}]
[null,185,{"$f":"'Controlador de Pontuação'!C188&COUNTIF('Controlador de Pontuação'!$C$4:C188,'Controlador de Pontuação'!C188)","v":"0"}]
[null,186,{"$f":"'Controlador de Pontuação'!C189&COUNTIF('Controlador de Pontuação'!$C$4:C189,'Controlador de Pontuação'!C189)","v":"0"}]
[null,187,{"$f":"'Controlador de Pontuação'!C190&COUNTIF('Controlador de Pontuação'!$C$4:C190,'Controlador de Pontuação'!C190)","v":"0"}]
[null,188,{"$f":"'Controlador de Pontuação'!C191&COUNTIF('Controlador de Pontuação'!$C$4:C191,'Controlador de Pontuação'!C191)","v":"0"}]
[null,189,{"$f":"'Controlador de Pontuação'!C192&COUNTIF('Controlador de Pontuação'!$C$4:C192,'Controlador de Pontuação'!C192)","v":"0"}]
[null,190,{"$f":"'Controlador de Pontuação'!C193&COUNTIF('Controlador de Pontuação'!$C$4:C193,'Controlador de Pontuação'!C193)","v":"0"}]
[null,191,{"$f":"'Controlador de Pontuação'!C194&COUNTIF('Controlador de Pontuação'!$C$4:C194,'Controlador de Pontuação'!C194)","v":"0"}]
[null,192,{"$f":"'Controlador de Pontuação'!C195&COUNTIF('Controlador de Pontuação'!$C$4:C195,'Controlador de Pontuação'!C195)","v":"0"}]
[null,193,{"$f":"'Controlador de Pontuação'!C196&COUNTIF('Controlador de Pontuação'!$C$4:C196,'Controlador de Pontuação'!C196)","v":"0"}]
[null,194,{"$f":"'Controlador de Pontuação'!C197&COUNTIF('Controlador de Pontuação'!$C$4:C197,'Controlador de Pontuação'!C197)","v":"0"}]
[null,195,{"$f":"'Controlador de Pontuação'!C198&COUNTIF('Controlador de Pontuação'!$C$4:C198,'Controlador de Pontuação'!C198)","v":"0"}]
[null,196,{"$f":"'Controlador de Pontuação'!C199&COUNTIF('Controlador de Pontuação'!$C$4:C199,'Controlador de Pontuação'!C199)","v":"0"}]
[null,197,{"$f":"'Controlador de Pontuação'!C200&COUNTIF('Controlador de Pontuação'!$C$4:C200,'Controlador de Pontuação'!C200)","v":"0"}]
[null,198,{"$f":"'Controlador de Pontuação'!C201&COUNTIF('Controlador de Pontuação'!$C$4:C201,'Controlador de Pontuação'!C201)","v":"0"}]
[null,199,{"$f":"'Controlador de Pontuação'!C202&COUNTIF('Controlador de Pontuação'!$C$4:C202,'Controlador de Pontuação'!C202)","v":"0"}]
[null,200,{"$f":"'Controlador de Pontuação'!C203&COUNTIF('Controlador de Pontuação'!$C$4:C203,'Controlador de Pontuação'!C203)","v":"0"}]
[null,201,{"$f":"'Controlador de Pontuação'!C204&COUNTIF('Controlador de Pontuação'!$C$4:C204,'Controlador de Pontuação'!C204)","v":"0"}]
[null,202,{"$f":"'Controlador de Pontuação'!C205&COUNTIF('Controlador de Pontuação'!$C$4:C205,'Controlador de Pontuação'!C205)","v":"0"}]
[null,203,{"$f":"'Controlador de Pontuação'!C206&COUNTIF('Controlador de Pontuação'!$C$4:C206,'Controlador de Pontuação'!C206)","v":"0"}]
[null,204,{"$f":"'Controlador de Pontuação'!C207&COUNTIF('Controlador de Pontuação'!$C$4:C207,'Controlador de Pontuação'!C207)","v":"0"}]
[null,205,{"$f":"'Controlador de Pontuação'!C208&COUNTIF('Controlador de Pontuação'!$C$4:C208,'Controlador de Pontuação'!C208)","v":"0"}]
[null,206,{"$f":"'Controlador de Pontuação'!C209&COUNTIF('Controlador de Pontuação'!$C$4:C209,'Controlador de Pontuação'!C209)","v":"0"}]
[null,207,{"$f":"'Controlador de Pontuação'!C210&COUNTIF('Controlador de Pontuação'!$C$4:C210,'Controlador de Pontuação'!C210)","v":"0"}]
[null,208,{"$f":"'Controlador de Pontuação'!C211&COUNTIF('Controlador de Pontuação'!$C$4:C211,'Controlador de Pontuação'!C211)","v":"0"}]
[null,209,{"$f":"'Controlador de Pontuação'!C212&COUNTIF('Controlador de Pontuação'!$C$4:C212,'Controlador de Pontuação'!C212)","v":"0"}]
[null,210,{"$f":"'Controlador de Pontuação'!C213&COUNTIF('Controlador de Pontuação'!$C$4:C213,'Controlador de Pontuação'!C213)","v":"0"}]
[null,211,{"$f":"'Controlador de Pontuação'!C214&COUNTIF('Controlador de Pontuação'!$C$4:C214,'Controlador de Pontuação'!C214)","v":"0"}]
[null,212,{"$f":"'Controlador de Pontuação'!C215&COUNTIF('Controlador de Pontuação'!$C$4:C215,'Controlador de Pontuação'!C215)","v":"0"}]
[null,213,{"$f":"'Controlador de Pontuação'!C216&COUNTIF('Controlador de Pontuação'!$C$4:C216,'Controlador de Pontuação'!C216)","v":"0"}]
[null,214,{"$f":"'Controlador de Pontuação'!C217&COUNTIF('Controlador de Pontuação'!$C$4:C217,'Controlador de Pontuação'!C217)","v":"0"}]
[null,215,{"$f":"'Controlador de Pontuação'!C218&COUNTIF('Controlador de Pontuação'!$C$4:C218,'Controlador de Pontuação'!C218)","v":"0"}]
[null,216,{"$f":"'Controlador de Pontuação'!C219&COUNTIF('Controlador de Pontuação'!$C$4:C219,'Controlador de Pontuação'!C219)","v":"0"}]
[null,217,{"$f":"'Controlador de Pontuação'!C220&COUNTIF('Controlador de Pontuação'!$C$4:C220,'Controlador de Pontuação'!C220)","v":"0"}]
[null,218,{"$f":"'Controlador de Pontuação'!C221&COUNTIF('Controlador de Pontuação'!$C$4:C221,'Controlador de Pontuação'!C221)","v":"0"}]
[null,219,{"$f":"'Controlador de Pontuação'!C222&COUNTIF('Controlador de Pontuação'!$C$4:C222,'Controlador de Pontuação'!C222)","v":"0"}]
[null,220,{"$f":"'Controlador de Pontuação'!C223&COUNTIF('Controlador de Pontuação'!$C$4:C223,'Controlador de Pontuação'!C223)","v":"0"}]
[null,221,{"$f":"'Controlador de Pontuação'!C224&COUNTIF('Controlador de Pontuação'!$C$4:C224,'Controlador de Pontuação'!C224)","v":"0"}]
[null,222,{"$f":"'Controlador de Pontuação'!C225&COUNTIF('Controlador de Pontuação'!$C$4:C225,'Controlador de Pontuação'!C225)","v":"0"}]
[null,223,{"$f":"'Controlador de Pontuação'!C226&COUNTIF('Controlador de Pontuação'!$C$4:C226,'Controlador de Pontuação'!C226)","v":"0"}]
[null,224,{"$f":"'Controlador de Pontuação'!C227&COUNTIF('Controlador de Pontuação'!$C$4:C227,'Controlador de Pontuação'!C227)","v":"0"}]
[null,225,{"$f":"'Controlador de Pontuação'!C228&COUNTIF('Controlador de Pontuação'!$C$4:C228,'Controlador de Pontuação'!C228)","v":"0"}]
[null,226,{"$f":"'Controlador de Pontuação'!C229&COUNTIF('Controlador de Pontuação'!$C$4:C229,'Controlador de Pontuação'!C229)","v":"0"}]
[null,227,{"$f":"'Controlador de Pontuação'!C230&COUNTIF('Controlador de Pontuação'!$C$4:C230,'Controlador de Pontuação'!C230)","v":"0"}]
[null,228,{"$f":"'Controlador de Pontuação'!C231&COUNTIF('Controlador de Pontuação'!$C$4:C231,'Controlador de Pontuação'!C231)","v":"0"}]
[null,229,{"$f":"'Controlador de Pontuação'!C232&COUNTIF('Controlador de Pontuação'!$C$4:C232,'Controlador de Pontuação'!C232)","v":"0"}]
[null,230,{"$f":"'Controlador de Pontuação'!C233&COUNTIF('Controlador de Pontuação'!$C$4:C233,'Controlador de Pontuação'!C233)","v":"0"}]
[null,231,{"$f":"'Controlador de Pontuação'!C234&COUNTIF('Controlador de Pontuação'!$C$4:C234,'Controlador de Pontuação'!C234)","v":"0"}]
[null,232,{"$f":"'Controlador de Pontuação'!C235&COUNTIF('Controlador de Pontuação'!$C$4:C235,'Controlador de Pontuação'!C235)","v":"0"}]
[null,233,{"$f":"'Controlador de Pontuação'!C236&COUNTIF('Controlador de Pontuação'!$C$4:C236,'Controlador de Pontuação'!C236)","v":"0"}]
[null,234,{"$f":"'Controlador de Pontuação'!C237&COUNTIF('Controlador de Pontuação'!$C$4:C237,'Controlador de Pontuação'!C237)","v":"0"}]
[null,235,{"$f":"'Controlador de Pontuação'!C238&COUNTIF('Controlador de Pontuação'!$C$4:C238,'Controlador de Pontuação'!C238)","v":"0"}]
[null,236,{"$f":"'Controlador de Pontuação'!C239&COUNTIF('Controlador de Pontuação'!$C$4:C239,'Controlador de Pontuação'!C239)","v":"0"}]
[null,237,{"$f":"'Controlador de Pontuação'!C240&COUNTIF('Controlador de Pontuação'!$C$4:C240,'Controlador de Pontuação'!C240)","v":"0"}]
[null,238,{"$f":"'Controlador de Pontuação'!C241&COUNTIF('Controlador de Pontuação'!$C$4:C241,'Controlador de Pontuação'!C241)","v":"0"}]
[null,239,{"$f":"'Controlador de Pontuação'!C242&COUNTIF('Controlador de Pontuação'!$C$4:C242,'Controlador de Pontuação'!C242)","v":"0"}]
[null,240,{"$f":"'Controlador de Pontuação'!C243&COUNTIF('Controlador de Pontuação'!$C$4:C243,'Controlador de Pontuação'!C243)","v":"0"}]
[null,241,{"$f":"'Controlador de Pontuação'!C244&COUNTIF('Controlador de Pontuação'!$C$4:C244,'Controlador de Pontuação'!C244)","v":"0"}]
[null,242,{"$f":"'Controlador de Pontuação'!C245&COUNTIF('Controlador de Pontuação'!$C$4:C245,'Controlador de Pontuação'!C245)","v":"0"}]
[null,243,{"$f":"'Controlador de Pontuação'!C246&COUNTIF('Controlador de Pontuação'!$C$4:C246,'Controlador de Pontuação'!C246)","v":"0"}]
[null,244,{"$f":"'Controlador de Pontuação'!C247&COUNTIF('Controlador de Pontuação'!$C$4:C247,'Controlador de Pontuação'!C247)","v":"0"}]
[null,245,{"$f":"'Controlador de Pontuação'!C248&COUNTIF('Controlador de Pontuação'!$C$4:C248,'Controlador de Pontuação'!C248)","v":"0"}]
[null,246,{"$f":"'Controlador de Pontuação'!C249&COUNTIF('Controlador de Pontuação'!$C$4:C249,'Controlador de Pontuação'!C249)","v":"0"}]
[null,247,{"$f":"'Controlador de Pontuação'!C250&COUNTIF('Controlador de Pontuação'!$C$4:C250,'Controlador de Pontuação'!C250)","v":"0"}]
[null,248,{"$f":"'Controlador de Pontuação'!C251&COUNTIF('Controlador de Pontuação'!$C$4:C251,'Controlador de Pontuação'!C251)","v":"0"}]
[null,249,{"$f":"'Controlador de Pontuação'!C252&COUNTIF('Controlador de Pontuação'!$C$4:C252,'Controlador de Pontuação'!C252)","v":"0"}]
[null,250,{"$f":"'Controlador de Pontuação'!C253&COUNTIF('Controlador de Pontuação'!$C$4:C253,'Controlador de Pontuação'!C253)","v":"0"}]
[null,251,{"$f":"'Controlador de Pontuação'!C254&COUNTIF('Controlador de Pontuação'!$C$4:C254,'Controlador de Pontuação'!C254)","v":"0"}]
[null,252,{"$f":"'Controlador de Pontuação'!C255&COUNTIF('Controlador de Pontuação'!$C$4:C255,'Controlador de Pontuação'!C255)","v":"0"}]
[null,253,{"$f":"'Controlador de Pontuação'!C256&COUNTIF('Controlador de Pontuação'!$C$4:C256,'Controlador de Pontuação'!C256)","v":"0"}]
[null,254,{"$f":"'Controlador de Pontuação'!C257&COUNTIF('Controlador de Pontuação'!$C$4:C257,'Controlador de Pontuação'!C257)","v":"0"}]
[null,255,{"$f":"'Controlador de Pontuação'!C258&COUNTIF('Controlador de Pontuação'!$C$4:C258,'Controlador de Pontuação'!C258)","v":"0"}]
[null,256,{"$f":"'Controlador de Pontuação'!C259&COUNTIF('Controlador de Pontuação'!$C$4:C259,'Controlador de Pontuação'!C259)","v":"0"}]
[null,257,{"$f":"'Controlador de Pontuação'!C260&COUNTIF('Controlador de Pontuação'!$C$4:C260,'Controlador de Pontuação'!C260)","v":"0"}]
[null,258,{"$f":"'Controlador de Pontuação'!C261&COUNTIF('Controlador de Pontuação'!$C$4:C261,'Controlador de Pontuação'!C261)","v":"0"}]
[null,259,{"$f":"'Controlador de Pontuação'!C262&COUNTIF('Controlador de Pontuação'!$C$4:C262,'Controlador de Pontuação'!C262)","v":"0"}]
[null,260,{"$f":"'Controlador de Pontuação'!C263&COUNTIF('Controlador de Pontuação'!$C$4:C263,'Controlador de Pontuação'!C263)","v":"0"}]
[null,261,{"$f":"'Controlador de Pontuação'!C264&COUNTIF('Controlador de Pontuação'!$C$4:C264,'Controlador de Pontuação'!C264)","v":"0"}]
[null,262,{"$f":"'Controlador de Pontuação'!C265&COUNTIF('Controlador de Pontuação'!$C$4:C265,'Controlador de Pontuação'!C265)","v":"0"}]
[null,263,{"$f":"'Controlador de Pontuação'!C266&COUNTIF('Controlador de Pontuação'!$C$4:C266,'Controlador de Pontuação'!C266)","v":"0"}]
[null,264,{"$f":"'Controlador de Pontuação'!C267&COUNTIF('Controlador de Pontuação'!$C$4:C267,'Controlador de Pontuação'!C267)","v":"0"}]
[null,265,{"$f":"'Controlador de Pontuação'!C268&COUNTIF('Controlador de Pontuação'!$C$4:C268,'Controlador de Pontuação'!C268)","v":"0"}]
[null,266,{"$f":"'Controlador de Pontuação'!C269&COUNTIF('Controlador de Pontuação'!$C$4:C269,'Controlador de Pontuação'!C269)","v":"0"}]
[null,267,{"$f":"'Controlador de Pontuação'!C270&COUNTIF('Controlador de Pontuação'!$C$4:C270,'Controlador de Pontuação'!C270)","v":"0"}]
[null,268,{"$f":"'Controlador de Pontuação'!C271&COUNTIF('Controlador de Pontuação'!$C$4:C271,'Controlador de Pontuação'!C271)","v":"0"}]
[null,269,{"$f":"'Controlador de Pontuação'!C272&COUNTIF('Controlador de Pontuação'!$C$4:C272,'Controlador de Pontuação'!C272)","v":"0"}]
[null,270,{"$f":"'Controlador de Pontuação'!C273&COUNTIF('Controlador de Pontuação'!$C$4:C273,'Controlador de Pontuação'!C273)","v":"0"}]
[null,271,{"$f":"'Controlador de Pontuação'!C274&COUNTIF('Controlador de Pontuação'!$C$4:C274,'Controlador de Pontuação'!C274)","v":"0"}]
[null,272,{"$f":"'Controlador de Pontuação'!C275&COUNTIF('Controlador de Pontuação'!$C$4:C275,'Controlador de Pontuação'!C275)","v":"0"}]
[null,273,{"$f":"'Controlador de Pontuação'!C276&COUNTIF('Controlador de Pontuação'!$C$4:C276,'Controlador de Pontuação'!C276)","v":"0"}]
[null,274,{"$f":"'Controlador de Pontuação'!C277&COUNTIF('Controlador de Pontuação'!$C$4:C277,'Controlador de Pontuação'!C277)","v":"0"}]
[null,275,{"$f":"'Controlador de Pontuação'!C278&COUNTIF('Controlador de Pontuação'!$C$4:C278,'Controlador de Pontuação'!C278)","v":"0"}]
[null,276,{"$f":"'Controlador de Pontuação'!C279&COUNTIF('Controlador de Pontuação'!$C$4:C279,'Controlador de Pontuação'!C279)","v":"0"}]
[null,277,{"$f":"'Controlador de Pontuação'!C280&COUNTIF('Controlador de Pontuação'!$C$4:C280,'Controlador de Pontuação'!C280)","v":"0"}]
[null,278,{"$f":"'Controlador de Pontuação'!C281&COUNTIF('Controlador de Pontuação'!$C$4:C281,'Controlador de Pontuação'!C281)","v":"0"}]
[null,279,{"$f":"'Controlador de Pontuação'!C282&COUNTIF('Controlador de Pontuação'!$C$4:C282,'Controlador de Pontuação'!C282)","v":"0"}]
[null,280,{"$f":"'Controlador de Pontuação'!C283&COUNTIF('Controlador de Pontuação'!$C$4:C283,'Controlador de Pontuação'!C283)","v":"0"}]
[null,281,{"$f":"'Controlador de Pontuação'!C284&COUNTIF('Controlador de Pontuação'!$C$4:C284,'Controlador de Pontuação'!C284)","v":"0"}]
[null,282,{"$f":"'Controlador de Pontuação'!C285&COUNTIF('Controlador de Pontuação'!$C$4:C285,'Controlador de Pontuação'!C285)","v":"0"}]
[null,283,{"$f":"'Controlador de Pontuação'!C286&COUNTIF('Controlador de Pontuação'!$C$4:C286,'Controlador de Pontuação'!C286)","v":"0"}]
[null,284,{"$f":"'Controlador de Pontuação'!C287&COUNTIF('Controlador de Pontuação'!$C$4:C287,'Controlador de Pontuação'!C287)","v":"0"}]
[null,285,{"$f":"'Controlador de Pontuação'!C288&COUNTIF('Controlador de Pontuação'!$C$4:C288,'Controlador de Pontuação'!C288)","v":"0"}]
[null,286,{"$f":"'Controlador de Pontuação'!C289&COUNTIF('Controlador de Pontuação'!$C$4:C289,'Controlador de Pontuação'!C289)","v":"0"}]
[null,287,{"$f":"'Controlador de Pontuação'!C290&COUNTIF('Controlador de Pontuação'!$C$4:C290,'Controlador de Pontuação'!C290)","v":"0"}]
[null,288,{"$f":"'Controlador de Pontuação'!C291&COUNTIF('Controlador de Pontuação'!$C$4:C291,'Controlador de Pontuação'!C291)","v":"0"}]
[null,289,{"$f":"'Controlador de Pontuação'!C292&COUNTIF('Controlador de Pontuação'!$C$4:C292,'Controlador de Pontuação'!C292)","v":"0"}]
[null,290,{"$f":"'Controlador de Pontuação'!C293&COUNTIF('Controlador de Pontuação'!$C$4:C293,'Controlador de Pontuação'!C293)","v":"0"}]
[null,291,{"$f":"'Controlador de Pontuação'!C294&COUNTIF('Controlador de Pontuação'!$C$4:C294,'Controlador de Pontuação'!C294)","v":"0"}]
[null,292,{"$f":"'Controlador de Pontuação'!C295&COUNTIF('Controlador de Pontuação'!$C$4:C295,'Controlador de Pontuação'!C295)","v":"0"}]
[null,293,{"$f":"'Controlador de Pontuação'!C296&COUNTIF('Controlador de Pontuação'!$C$4:C296,'Controlador de Pontuação'!C296)","v":"0"}]
[null,294,{"$f":"'Controlador de Pontuação'!C297&COUNTIF('Controlador de Pontuação'!$C$4:C297,'Controlador de Pontuação'!C297)","v":"0"}]
[null,295,{"$f":"'Controlador de Pontuação'!C298&COUNTIF('Controlador de Pontuação'!$C$4:C298,'Controlador de Pontuação'!C298)","v":"0"}]
[null,296,{"$f":"'Controlador de Pontuação'!C299&COUNTIF('Controlador de Pontuação'!$C$4:C299,'Controlador de Pontuação'!C299)","v":"0"}]
[null,297,{"$f":"'Controlador de Pontuação'!C300&COUNTIF('Controlador de Pontuação'!$C$4:C300,'Controlador de Pontuação'!C300)","v":"0"}]
[null,298,{"$f":"'Controlador de Pontuação'!C301&COUNTIF('Controlador de Pontuação'!$C$4:C301,'Controlador de Pontuação'!C301)","v":"0"}]
[null,299,{"$f":"'Controlador de Pontuação'!C302&COUNTIF('Controlador de Pontuação'!$C$4:C302,'Controlador de Pontuação'!C302)","v":"0"}]
[null,300,{"$f":"'Controlador de Pontuação'!C303&COUNTIF('Controlador de Pontuação'!$C$4:C303,'Controlador de Pontuação'!C303)","v":"0"}]
[null,301,{"$f":"'Controlador de Pontuação'!C304&COUNTIF('Controlador de Pontuação'!$C$4:C304,'Controlador de Pontuação'!C304)","v":"0"}]
[null,302,{"$f":"'Controlador de Pontuação'!C305&COUNTIF('Controlador de Pontuação'!$C$4:C305,'Controlador de Pontuação'!C305)","v":"0"}]
[null,303,{"$f":"'Controlador de Pontuação'!C306&COUNTIF('Controlador de Pontuação'!$C$4:C306,'Controlador de Pontuação'!C306)","v":"0"}]
[null,304,{"$f":"'Controlador de Pontuação'!C307&COUNTIF('Controlador de Pontuação'!$C$4:C307,'Controlador de Pontuação'!C307)","v":"0"}]
[null,305,{"$f":"'Controlador de Pontuação'!C308&COUNTIF('Controlador de Pontuação'!$C$4:C308,'Controlador de Pontuação'!C308)","v":"0"}]
[null,306,{"$f":"'Controlador de Pontuação'!C309&COUNTIF('Controlador de Pontuação'!$C$4:C309,'Controlador de Pontuação'!C309)","v":"0"}]
[null,307,{"$f":"'Controlador de Pontuação'!C310&COUNTIF('Controlador de Pontuação'!$C$4:C310,'Controlador de Pontuação'!C310)","v":"0"}]
[null,308,{"$f":"'Controlador de Pontuação'!C311&COUNTIF('Controlador de Pontuação'!$C$4:C311,'Controlador de Pontuação'!C311)","v":"0"}]
[null,309,{"$f":"'Controlador de Pontuação'!C312&COUNTIF('Controlador de Pontuação'!$C$4:C312,'Controlador de Pontuação'!C312)","v":"0"}]
[null,310,{"$f":"'Controlador de Pontuação'!C313&COUNTIF('Controlador de Pontuação'!$C$4:C313,'Controlador de Pontuação'!C313)","v":"0"}]
[null,311,{"$f":"'Controlador de Pontuação'!C314&COUNTIF('Controlador de Pontuação'!$C$4:C314,'Controlador de Pontuação'!C314)","v":"0"}]
[null,312,{"$f":"'Controlador de Pontuação'!C315&COUNTIF('Controlador de Pontuação'!$C$4:C315,'Controlador de Pontuação'!C315)","v":"0"}]
[null,313,{"$f":"'Controlador de Pontuação'!C316&COUNTIF('Controlador de Pontuação'!$C$4:C316,'Controlador de Pontuação'!C316)","v":"0"}]
[null,314,{"$f":"'Controlador de Pontuação'!C317&COUNTIF('Controlador de Pontuação'!$C$4:C317,'Controlador de Pontuação'!C317)","v":"0"}]
[null,315,{"$f":"'Controlador de Pontuação'!C318&COUNTIF('Controlador de Pontuação'!$C$4:C318,'Controlador de Pontuação'!C318)","v":"0"}]
[null,316,{"$f":"'Controlador de Pontuação'!C319&COUNTIF('Controlador de Pontuação'!$C$4:C319,'Controlador de Pontuação'!C319)","v":"0"}]
[null,317,{"$f":"'Controlador de Pontuação'!C320&COUNTIF('Controlador de Pontuação'!$C$4:C320,'Controlador de Pontuação'!C320)","v":"0"}]
[null,318,{"$f":"'Controlador de Pontuação'!C321&COUNTIF('Controlador de Pontuação'!$C$4:C321,'Controlador de Pontuação'!C321)","v":"0"}]
[null,319,{"$f":"'Controlador de Pontuação'!C322&COUNTIF('Controlador de Pontuação'!$C$4:C322,'Controlador de Pontuação'!C322)","v":"0"}]
[null,320,{"$f":"'Controlador de Pontuação'!C323&COUNTIF('Controlador de Pontuação'!$C$4:C323,'Controlador de Pontuação'!C323)","v":"0"}]
[null,321,{"$f":"'Controlador de Pontuação'!C324&COUNTIF('Controlador de Pontuação'!$C$4:C324,'Controlador de Pontuação'!C324)","v":"0"}]
[null,322,{"$f":"'Controlador de Pontuação'!C325&COUNTIF('Controlador de Pontuação'!$C$4:C325,'Controlador de Pontuação'!C325)","v":"0"}]
[null,323,{"$f":"'Controlador de Pontuação'!C326&COUNTIF('Controlador de Pontuação'!$C$4:C326,'Controlador de Pontuação'!C326)","v":"0"}]
[null,324,{"$f":"'Controlador de Pontuação'!C327&COUNTIF('Controlador de Pontuação'!$C$4:C327,'Controlador de Pontuação'!C327)","v":"0"}]
[null,325,{"$f":"'Controlador de Pontuação'!C328&COUNTIF('Controlador de Pontuação'!$C$4:C328,'Controlador de Pontuação'!C328)","v":"0"}]
[null,326,{"$f":"'Controlador de Pontuação'!C329&COUNTIF('Controlador de Pontuação'!$C$4:C329,'Controlador de Pontuação'!C329)","v":"0"}]
[null,327,{"$f":"'Controlador de Pontuação'!C330&COUNTIF('Controlador de Pontuação'!$C$4:C330,'Controlador de Pontuação'!C330)","v":"0"}]
[null,328,{"$f":"'Controlador de Pontuação'!C331&COUNTIF('Controlador de Pontuação'!$C$4:C331,'Controlador de Pontuação'!C331)","v":"0"}]
[null,329,{"$f":"'Controlador de Pontuação'!C332&COUNTIF('Controlador de Pontuação'!$C$4:C332,'Controlador de Pontuação'!C332)","v":"0"}]
[null,330,{"$f":"'Controlador de Pontuação'!C333&COUNTIF('Controlador de Pontuação'!$C$4:C333,'Controlador de Pontuação'!C333)","v":"0"}]
[null,331,{"$f":"'Controlador de Pontuação'!C334&COUNTIF('Controlador de Pontuação'!$C$4:C334,'Controlador de Pontuação'!C334)","v":"0"}]
[null,332,{"$f":"'Controlador de Pontuação'!C335&COUNTIF('Controlador de Pontuação'!$C$4:C335,'Controlador de Pontuação'!C335)","v":"0"}]
[null,333,{"$f":"'Controlador de Pontuação'!C336&COUNTIF('Controlador de Pontuação'!$C$4:C336,'Controlador de Pontuação'!C336)","v":"0"}]
[null,334,{"$f":"'Controlador de Pontuação'!C337&COUNTIF('Controlador de Pontuação'!$C$4:C337,'Controlador de Pontuação'!C337)","v":"0"}]
[null,335,{"$f":"'Controlador de Pontuação'!C338&COUNTIF('Controlador de Pontuação'!$C$4:C338,'Controlador de Pontuação'!C338)","v":"0"}]
[null,336,{"$f":"'Controlador de Pontuação'!C339&COUNTIF('Controlador de Pontuação'!$C$4:C339,'Controlador de Pontuação'!C339)","v":"0"}]
[null,337,{"$f":"'Controlador de Pontuação'!C340&COUNTIF('Controlador de Pontuação'!$C$4:C340,'Controlador de Pontuação'!C340)","v":"0"}]
[null,338,{"$f":"'Controlador de Pontuação'!C341&COUNTIF('Controlador de Pontuação'!$C$4:C341,'Controlador de Pontuação'!C341)","v":"0"}]
[null,339,{"$f":"'Controlador de Pontuação'!C342&COUNTIF('Controlador de Pontuação'!$C$4:C342,'Controlador de Pontuação'!C342)","v":"0"}]
[null,340,{"$f":"'Controlador de Pontuação'!C343&COUNTIF('Controlador de Pontuação'!$C$4:C343,'Controlador de Pontuação'!C343)","v":"0"}]
[null,341,{"$f":"'Controlador de Pontuação'!C344&COUNTIF('Controlador de Pontuação'!$C$4:C344,'Controlador de Pontuação'!C344)","v":"0"}]
[null,342,{"$f":"'Controlador de Pontuação'!C345&COUNTIF('Controlador de Pontuação'!$C$4:C345,'Controlador de Pontuação'!C345)","v":"0"}]
[null,343,{"$f":"'Controlador de Pontuação'!C346&COUNTIF('Controlador de Pontuação'!$C$4:C346,'Controlador de Pontuação'!C346)","v":"0"}]
[null,344,{"$f":"'Controlador de Pontuação'!C347&COUNTIF('Controlador de Pontuação'!$C$4:C347,'Controlador de Pontuação'!C347)","v":"0"}]
[null,345,{"$f":"'Controlador de Pontuação'!C348&COUNTIF('Controlador de Pontuação'!$C$4:C348,'Controlador de Pontuação'!C348)","v":"0"}]
[null,346,{"$f":"'Controlador de Pontuação'!C349&COUNTIF('Controlador de Pontuação'!$C$4:C349,'Controlador de Pontuação'!C349)","v":"0"}]
[null,347,{"$f":"'Controlador de Pontuação'!C350&COUNTIF('Controlador de Pontuação'!$C$4:C350,'Controlador de Pontuação'!C350)","v":"0"}]
[null,348,{"$f":"'Controlador de Pontuação'!C351&COUNTIF('Controlador de Pontuação'!$C$4:C351,'Controlador de Pontuação'!C351)","v":"0"}]
[null,349,{"$f":"'Controlador de Pontuação'!C352&COUNTIF('Controlador de Pontuação'!$C$4:C352,'Controlador de Pontuação'!C352)","v":"0"}]
[null,350,{"$f":"'Controlador de Pontuação'!C353&COUNTIF('Controlador de Pontuação'!$C$4:C353,'Controlador de Pontuação'!C353)","v":"0"}]
[null,351,{"$f":"'Controlador de Pontuação'!C354&COUNTIF('Controlador de Pontuação'!$C$4:C354,'Controlador de Pontuação'!C354)","v":"0"}]
[null,352,{"$f":"'Controlador de Pontuação'!C355&COUNTIF('Controlador de Pontuação'!$C$4:C355,'Controlador de Pontuação'!C355)","v":"0"}]
[null,353,{"$f":"'Controlador de Pontuação'!C356&COUNTIF('Controlador de Pontuação'!$C$4:C356,'Controlador de Pontuação'!C356)","v":"0"}]
[null,354,{"$f":"'Controlador de Pontuação'!C357&COUNTIF('Controlador de Pontuação'!$C$4:C357,'Controlador de Pontuação'!C357)","v":"0"}]
[null,355,{"$f":"'Controlador de Pontuação'!C358&COUNTIF('Controlador de Pontuação'!$C$4:C358,'Controlador de Pontuação'!C358)","v":"0"}]
[null,356,{"$f":"'Controlador de Pontuação'!C359&COUNTIF('Controlador de Pontuação'!$C$4:C359,'Controlador de Pontuação'!C359)","v":"0"}]
[null,357,{"$f":"'Controlador de Pontuação'!C360&COUNTIF('Controlador de Pontuação'!$C$4:C360,'Controlador de Pontuação'!C360)","v":"0"}]
[null,358,{"$f":"'Controlador de Pontuação'!C361&COUNTIF('Controlador de Pontuação'!$C$4:C361,'Controlador de Pontuação'!C361)","v":"0"}]
[null,359,{"$f":"'Controlador de Pontuação'!C362&COUNTIF('Controlador de Pontuação'!$C$4:C362,'Controlador de Pontuação'!C362)","v":"0"}]
[null,360,{"$f":"'Controlador de Pontuação'!C363&COUNTIF('Controlador de Pontuação'!$C$4:C363,'Controlador de Pontuação'!C363)","v":"0"}]
[null,361,{"$f":"'Controlador de Pontuação'!C364&COUNTIF('Controlador de Pontuação'!$C$4:C364,'Controlador de Pontuação'!C364)","v":"0"}]
[null,362,{"$f":"'Controlador de Pontuação'!C365&COUNTIF('Controlador de Pontuação'!$C$4:C365,'Controlador de Pontuação'!C365)","v":"0"}]
[null,363,{"$f":"'Controlador de Pontuação'!C366&COUNTIF('Controlador de Pontuação'!$C$4:C366,'Controlador de Pontuação'!C366)","v":"0"}]
[null,364,{"$f":"'Controlador de Pontuação'!C367&COUNTIF('Controlador de Pontuação'!$C$4:C367,'Controlador de Pontuação'!C367)","v":"0"}]
[null,365,{"$f":"'Controlador de Pontuação'!C368&COUNTIF('Controlador de Pontuação'!$C$4:C368,'Controlador de Pontuação'!C368)","v":"0"}]
[null,366,{"$f":"'Controlador de Pontuação'!C369&COUNTIF('Controlador de Pontuação'!$C$4:C369,'Controlador de Pontuação'!C369)","v":"0"}]
[null,367,{"$f":"'Controlador de Pontuação'!C370&COUNTIF('Controlador de Pontuação'!$C$4:C370,'Controlador de Pontuação'!C370)","v":"0"}]
[null,368,{"$f":"'Controlador de Pontuação'!C371&COUNTIF('Controlador de Pontuação'!$C$4:C371,'Controlador de Pontuação'!C371)","v":"0"}]
[null,369,{"$f":"'Controlador de Pontuação'!C372&COUNTIF('Controlador de Pontuação'!$C$4:C372,'Controlador de Pontuação'!C372)","v":"0"}]
[null,370,{"$f":"'Controlador de Pontuação'!C373&COUNTIF('Controlador de Pontuação'!$C$4:C373,'Controlador de Pontuação'!C373)","v":"0"}]
[null,371,{"$f":"'Controlador de Pontuação'!C374&COUNTIF('Controlador de Pontuação'!$C$4:C374,'Controlador de Pontuação'!C374)","v":"0"}]
[null,372,{"$f":"'Controlador de Pontuação'!C375&COUNTIF('Controlador de Pontuação'!$C$4:C375,'Controlador de Pontuação'!C375)","v":"0"}]
[null,373,{"$f":"'Controlador de Pontuação'!C376&COUNTIF('Controlador de Pontuação'!$C$4:C376,'Controlador de Pontuação'!C376)","v":"0"}]
[null,374,{"$f":"'Controlador de Pontuação'!C377&COUNTIF('Controlador de Pontuação'!$C$4:C377,'Controlador de Pontuação'!C377)","v":"0"}]
[null,375,{"$f":"'Controlador de Pontuação'!C378&COUNTIF('Controlador de Pontuação'!$C$4:C378,'Controlador de Pontuação'!C378)","v":"0"}]
[null,376,{"$f":"'Controlador de Pontuação'!C379&COUNTIF('Controlador de Pontuação'!$C$4:C379,'Controlador de Pontuação'!C379)","v":"0"}]
[null,377,{"$f":"'Controlador de Pontuação'!C380&COUNTIF('Controlador de Pontuação'!$C$4:C380,'Controlador de Pontuação'!C380)","v":"0"}]
[null,378,{"$f":"'Controlador de Pontuação'!C381&COUNTIF('Controlador de Pontuação'!$C$4:C381,'Controlador de Pontuação'!C381)","v":"0"}]
[null,379,{"$f":"'Controlador de Pontuação'!C382&COUNTIF('Controlador de Pontuação'!$C$4:C382,'Controlador de Pontuação'!C382)","v":"0"}]
[null,380,{"$f":"'Controlador de Pontuação'!C383&COUNTIF('Controlador de Pontuação'!$C$4:C383,'Controlador de Pontuação'!C383)","v":"0"}]
[null,381,{"$f":"'Controlador de Pontuação'!C384&COUNTIF('Controlador de Pontuação'!$C$4:C384,'Controlador de Pontuação'!C384)","v":"0"}]
[null,382,{"$f":"'Controlador de Pontuação'!C385&COUNTIF('Controlador de Pontuação'!$C$4:C385,'Controlador de Pontuação'!C385)","v":"0"}]
[null,383,{"$f":"'Controlador de Pontuação'!C386&COUNTIF('Controlador de Pontuação'!$C$4:C386,'Controlador de Pontuação'!C386)","v":"0"}]
[null,384,{"$f":"'Controlador de Pontuação'!C387&COUNTIF('Controlador de Pontuação'!$C$4:C387,'Controlador de Pontuação'!C387)","v":"0"}]
[null,385,{"$f":"'Controlador de Pontuação'!C388&COUNTIF('Controlador de Pontuação'!$C$4:C388,'Controlador de Pontuação'!C388)","v":"0"}]
[null,386,{"$f":"'Controlador de Pontuação'!C389&COUNTIF('Controlador de Pontuação'!$C$4:C389,'Controlador de Pontuação'!C389)","v":"0"}]
[null,387,{"$f":"'Controlador de Pontuação'!C390&COUNTIF('Controlador de Pontuação'!$C$4:C390,'Controlador de Pontuação'!C390)","v":"0"}]
[null,388,{"$f":"'Controlador de Pontuação'!C391&COUNTIF('Controlador de Pontuação'!$C$4:C391,'Controlador de Pontuação'!C391)","v":"0"}]
[null,389,{"$f":"'Controlador de Pontuação'!C392&COUNTIF('Controlador de Pontuação'!$C$4:C392,'Controlador de Pontuação'!C392)","v":"0"}]
[null,390,{"$f":"'Controlador de Pontuação'!C393&COUNTIF('Controlador de Pontuação'!$C$4:C393,'Controlador de Pontuação'!C393)","v":"0"}]
[null,391,{"$f":"'Controlador de Pontuação'!C394&COUNTIF('Controlador de Pontuação'!$C$4:C394,'Controlador de Pontuação'!C394)","v":"0"}]
[null,392,{"$f":"'Controlador de Pontuação'!C395&COUNTIF('Controlador de Pontuação'!$C$4:C395,'Controlador de Pontuação'!C395)","v":"0"}]
[null,393,{"$f":"'Controlador de Pontuação'!C396&COUNTIF('Controlador de Pontuação'!$C$4:C396,'Controlador de Pontuação'!C396)","v":"0"}]
[null,394,{"$f":"'Controlador de Pontuação'!C397&COUNTIF('Controlador de Pontuação'!$C$4:C397,'Controlador de Pontuação'!C397)","v":"0"}]
[null,395,{"$f":"'Controlador de Pontuação'!C398&COUNTIF('Controlador de Pontuação'!$C$4:C398,'Controlador de Pontuação'!C398)","v":"0"}]
[null,396,{"$f":"'Controlador de Pontuação'!C399&COUNTIF('Controlador de Pontuação'!$C$4:C399,'Controlador de Pontuação'!C399)","v":"0"}]
[null,397,{"$f":"'Controlador de Pontuação'!C400&COUNTIF('Controlador de Pontuação'!$C$4:C400,'Controlador de Pontuação'!C400)","v":"0"}]
[null,398,{"$f":"'Controlador de Pontuação'!C401&COUNTIF('Controlador de Pontuação'!$C$4:C401,'Controlador de Pontuação'!C401)","v":"0"}]
[null,399,{"$f":"'Controlador de Pontuação'!C402&COUNTIF('Controlador de Pontuação'!$C$4:C402,'Controlador de Pontuação'!C402)","v":"0"}]
[null,400,{"$f":"'Controlador de Pontuação'!C403&COUNTIF('Controlador de Pontuação'!$C$4:C403,'Controlador de Pontuação'!C403)","v":"0"}]
[null,401,{"$f":"'Controlador de Pontuação'!C404&COUNTIF('Controlador de Pontuação'!$C$4:C404,'Controlador de Pontuação'!C404)","v":"0"}]
[null,402,{"$f":"'Controlador de Pontuação'!C405&COUNTIF('Controlador de Pontuação'!$C$4:C405,'Controlador de Pontuação'!C405)","v":"0"}]
[null,403,{"$f":"'Controlador de Pontuação'!C406&COUNTIF('Controlador de Pontuação'!$C$4:C406,'Controlador de Pontuação'!C406)","v":"0"}]
[null,404,{"$f":"'Controlador de Pontuação'!C407&COUNTIF('Controlador de Pontuação'!$C$4:C407,'Controlador de Pontuação'!C407)","v":"0"}]
[null,405,{"$f":"'Controlador de Pontuação'!C408&COUNTIF('Controlador de Pontuação'!$C$4:C408,'Controlador de Pontuação'!C408)","v":"0"}]
[null,406,{"$f":"'Controlador de Pontuação'!C409&COUNTIF('Controlador de Pontuação'!$C$4:C409,'Controlador de Pontuação'!C409)","v":"0"}]
[null,407,{"$f":"'Controlador de Pontuação'!C410&COUNTIF('Controlador de Pontuação'!$C$4:C410,'Controlador de Pontuação'!C410)","v":"0"}]
[null,408,{"$f":"'Controlador de Pontuação'!C411&COUNTIF('Controlador de Pontuação'!$C$4:C411,'Controlador de Pontuação'!C411)","v":"0"}]
[null,409,{"$f":"'Controlador de Pontuação'!C412&COUNTIF('Controlador de Pontuação'!$C$4:C412,'Controlador de Pontuação'!C412)","v":"0"}]
[null,410,{"$f":"'Controlador de Pontuação'!C413&COUNTIF('Controlador de Pontuação'!$C$4:C413,'Controlador de Pontuação'!C413)","v":"0"}]
[null,411,{"$f":"'Controlador de Pontuação'!C414&COUNTIF('Controlador de Pontuação'!$C$4:C414,'Controlador de Pontuação'!C414)","v":"0"}]
[null,412,{"$f":"'Controlador de Pontuação'!C415&COUNTIF('Controlador de Pontuação'!$C$4:C415,'Controlador de Pontuação'!C415)","v":"0"}]
[null,413,{"$f":"'Controlador de Pontuação'!C416&COUNTIF('Controlador de Pontuação'!$C$4:C416,'Controlador de Pontuação'!C416)","v":"0"}]
[null,414,{"$f":"'Controlador de Pontuação'!C417&COUNTIF('Controlador de Pontuação'!$C$4:C417,'Controlador de Pontuação'!C417)","v":"0"}]
[null,415,{"$f":"'Controlador de Pontuação'!C418&COUNTIF('Controlador de Pontuação'!$C$4:C418,'Controlador de Pontuação'!C418)","v":"0"}]
[null,416,{"$f":"'Controlador de Pontuação'!C419&COUNTIF('Controlador de Pontuação'!$C$4:C419,'Controlador de Pontuação'!C419)","v":"0"}]
[null,417,{"$f":"'Controlador de Pontuação'!C420&COUNTIF('Controlador de Pontuação'!$C$4:C420,'Controlador de Pontuação'!C420)","v":"0"}]
[null,418,{"$f":"'Controlador de Pontuação'!C421&COUNTIF('Controlador de Pontuação'!$C$4:C421,'Controlador de Pontuação'!C421)","v":"0"}]
[null,419,{"$f":"'Controlador de Pontuação'!C422&COUNTIF('Controlador de Pontuação'!$C$4:C422,'Controlador de Pontuação'!C422)","v":"0"}]
[null,420,{"$f":"'Controlador de Pontuação'!C423&COUNTIF('Controlador de Pontuação'!$C$4:C423,'Controlador de Pontuação'!C423)","v":"0"}]
[null,421,{"$f":"'Controlador de Pontuação'!C424&COUNTIF('Controlador de Pontuação'!$C$4:C424,'Controlador de Pontuação'!C424)","v":"0"}]
[null,422,{"$f":"'Controlador de Pontuação'!C425&COUNTIF('Controlador de Pontuação'!$C$4:C425,'Controlador de Pontuação'!C425)","v":"0"}]
[null,423,{"$f":"'Controlador de Pontuação'!C426&COUNTIF('Controlador de Pontuação'!$C$4:C426,'Controlador de Pontuação'!C426)","v":"0"}]
[null,424,{"$f":"'Controlador de Pontuação'!C427&COUNTIF('Controlador de Pontuação'!$C$4:C427,'Controlador de Pontuação'!C427)","v":"0"}]
[null,425,{"$f":"'Controlador de Pontuação'!C428&COUNTIF('Controlador de Pontuação'!$C$4:C428,'Controlador de Pontuação'!C428)","v":"0"}]
[null,426,{"$f":"'Controlador de Pontuação'!C429&COUNTIF('Controlador de Pontuação'!$C$4:C429,'Controlador de Pontuação'!C429)","v":"0"}]
[null,427,{"$f":"'Controlador de Pontuação'!C430&COUNTIF('Controlador de Pontuação'!$C$4:C430,'Controlador de Pontuação'!C430)","v":"0"}]
[null,428,{"$f":"'Controlador de Pontuação'!C431&COUNTIF('Controlador de Pontuação'!$C$4:C431,'Controlador de Pontuação'!C431)","v":"0"}]
[null,429,{"$f":"'Controlador de Pontuação'!C432&COUNTIF('Controlador de Pontuação'!$C$4:C432,'Controlador de Pontuação'!C432)","v":"0"}]
[null,430,{"$f":"'Controlador de Pontuação'!C433&COUNTIF('Controlador de Pontuação'!$C$4:C433,'Controlador de Pontuação'!C433)","v":"0"}]
[null,431,{"$f":"'Controlador de Pontuação'!C434&COUNTIF('Controlador de Pontuação'!$C$4:C434,'Controlador de Pontuação'!C434)","v":"0"}]
[null,432,{"$f":"'Controlador de Pontuação'!C435&COUNTIF('Controlador de Pontuação'!$C$4:C435,'Controlador de Pontuação'!C435)","v":"0"}]
[null,433,{"$f":"'Controlador de Pontuação'!C436&COUNTIF('Controlador de Pontuação'!$C$4:C436,'Controlador de Pontuação'!C436)","v":"0"}]
[null,434,{"$f":"'Controlador de Pontuação'!C437&COUNTIF('Controlador de Pontuação'!$C$4:C437,'Controlador de Pontuação'!C437)","v":"0"}]
[null,435,{"$f":"'Controlador de Pontuação'!C438&COUNTIF('Controlador de Pontuação'!$C$4:C438,'Controlador de Pontuação'!C438)","v":"0"}]
[null,436,{"$f":"'Controlador de Pontuação'!C439&COUNTIF('Controlador de Pontuação'!$C$4:C439,'Controlador de Pontuação'!C439)","v":"0"}]
[null,437,{"$f":"'Controlador de Pontuação'!C440&COUNTIF('Controlador de Pontuação'!$C$4:C440,'Controlador de Pontuação'!C440)","v":"0"}]
[null,438,{"$f":"'Controlador de Pontuação'!C441&COUNTIF('Controlador de Pontuação'!$C$4:C441,'Controlador de Pontuação'!C441)","v":"0"}]
[null,439,{"$f":"'Controlador de Pontuação'!C442&COUNTIF('Controlador de Pontuação'!$C$4:C442,'Controlador de Pontuação'!C442)","v":"0"}]
[null,440,{"$f":"'Controlador de Pontuação'!C443&COUNTIF('Controlador de Pontuação'!$C$4:C443,'Controlador de Pontuação'!C443)","v":"0"}]
[null,441,{"$f":"'Controlador de Pontuação'!C444&COUNTIF('Controlador de Pontuação'!$C$4:C444,'Controlador de Pontuação'!C444)","v":"0"}]
[null,442,{"$f":"'Controlador de Pontuação'!C445&COUNTIF('Controlador de Pontuação'!$C$4:C445,'Controlador de Pontuação'!C445)","v":"0"}]
[null,443,{"$f":"'Controlador de Pontuação'!C446&COUNTIF('Controlador de Pontuação'!$C$4:C446,'Controlador de Pontuação'!C446)","v":"0"}]
[null,444,{"$f":"'Controlador de Pontuação'!C447&COUNTIF('Controlador de Pontuação'!$C$4:C447,'Controlador de Pontuação'!C447)","v":"0"}]
[null,445,{"$f":"'Controlador de Pontuação'!C448&COUNTIF('Controlador de Pontuação'!$C$4:C448,'Controlador de Pontuação'!C448)","v":"0"}]
[null,446,{"$f":"'Controlador de Pontuação'!C449&COUNTIF('Controlador de Pontuação'!$C$4:C449,'Controlador de Pontuação'!C449)","v":"0"}]
[null,447,{"$f":"'Controlador de Pontuação'!C450&COUNTIF('Controlador de Pontuação'!$C$4:C450,'Controlador de Pontuação'!C450)","v":"0"}]
[null,448,{"$f":"'Controlador de Pontuação'!C451&COUNTIF('Controlador de Pontuação'!$C$4:C451,'Controlador de Pontuação'!C451)","v":"0"}]
[null,449,{"$f":"'Controlador de Pontuação'!C452&COUNTIF('Controlador de Pontuação'!$C$4:C452,'Controlador de Pontuação'!C452)","v":"0"}]
[null,450,{"$f":"'Controlador de Pontuação'!C453&COUNTIF('Controlador de Pontuação'!$C$4:C453,'Controlador de Pontuação'!C453)","v":"0"}]
[null,451,{"$f":"'Controlador de Pontuação'!C454&COUNTIF('Controlador de Pontuação'!$C$4:C454,'Controlador de Pontuação'!C454)","v":"0"}]
[null,452,{"$f":"'Controlador de Pontuação'!C455&COUNTIF('Controlador de Pontuação'!$C$4:C455,'Controlador de Pontuação'!C455)","v":"0"}]
[null,453,{"$f":"'Controlador de Pontuação'!C456&COUNTIF('Controlador de Pontuação'!$C$4:C456,'Controlador de Pontuação'!C456)","v":"0"}]
[null,454,{"$f":"'Controlador de Pontuação'!C457&COUNTIF('Controlador de Pontuação'!$C$4:C457,'Controlador de Pontuação'!C457)","v":"0"}]
[null,455,{"$f":"'Controlador de Pontuação'!C458&COUNTIF('Controlador de Pontuação'!$C$4:C458,'Controlador de Pontuação'!C458)","v":"0"}]
[null,456,{"$f":"'Controlador de Pontuação'!C459&COUNTIF('Controlador de Pontuação'!$C$4:C459,'Controlador de Pontuação'!C459)","v":"0"}]
[null,457,{"$f":"'Controlador de Pontuação'!C460&COUNTIF('Controlador de Pontuação'!$C$4:C460,'Controlador de Pontuação'!C460)","v":"0"}]
[null,458,{"$f":"'Controlador de Pontuação'!C461&COUNTIF('Controlador de Pontuação'!$C$4:C461,'Controlador de Pontuação'!C461)","v":"0"}]
[null,459,{"$f":"'Controlador de Pontuação'!C462&COUNTIF('Controlador de Pontuação'!$C$4:C462,'Controlador de Pontuação'!C462)","v":"0"}]
[null,460,{"$f":"'Controlador de Pontuação'!C463&COUNTIF('Controlador de Pontuação'!$C$4:C463,'Controlador de Pontuação'!C463)","v":"0"}]
[null,461,{"$f":"'Controlador de Pontuação'!C464&COUNTIF('Controlador de Pontuação'!$C$4:C464,'Controlador de Pontuação'!C464)","v":"0"}]
[null,462,{"$f":"'Controlador de Pontuação'!C465&COUNTIF('Controlador de Pontuação'!$C$4:C465,'Controlador de Pontuação'!C465)","v":"0"}]
[null,463,{"$f":"'Controlador de Pontuação'!C466&COUNTIF('Controlador de Pontuação'!$C$4:C466,'Controlador de Pontuação'!C466)","v":"0"}]
[null,464,{"$f":"'Controlador de Pontuação'!C467&COUNTIF('Controlador de Pontuação'!$C$4:C467,'Controlador de Pontuação'!C467)","v":"0"}]
[null,465,{"$f":"'Controlador de Pontuação'!C468&COUNTIF('Controlador de Pontuação'!$C$4:C468,'Controlador de Pontuação'!C468)","v":"0"}]
[null,466,{"$f":"'Controlador de Pontuação'!C469&COUNTIF('Controlador de Pontuação'!$C$4:C469,'Controlador de Pontuação'!C469)","v":"0"}]
[null,467,{"$f":"'Controlador de Pontuação'!C470&COUNTIF('Controlador de Pontuação'!$C$4:C470,'Controlador de Pontuação'!C470)","v":"0"}]
[null,468,{"$f":"'Controlador de Pontuação'!C471&COUNTIF('Controlador de Pontuação'!$C$4:C471,'Controlador de Pontuação'!C471)","v":"0"}]
[null,469,{"$f":"'Controlador de Pontuação'!C472&COUNTIF('Controlador de Pontuação'!$C$4:C472,'Controlador de Pontuação'!C472)","v":"0"}]
[null,470,{"$f":"'Controlador de Pontuação'!C473&COUNTIF('Controlador de Pontuação'!$C$4:C473,'Controlador de Pontuação'!C473)","v":"0"}]
[null,471,{"$f":"'Controlador de Pontuação'!C474&COUNTIF('Controlador de Pontuação'!$C$4:C474,'Controlador de Pontuação'!C474)","v":"0"}]
[null,472,{"$f":"'Controlador de Pontuação'!C475&COUNTIF('Controlador de Pontuação'!$C$4:C475,'Controlador de Pontuação'!C475)","v":"0"}]
[null,473,{"$f":"'Controlador de Pontuação'!C476&COUNTIF('Controlador de Pontuação'!$C$4:C476,'Controlador de Pontuação'!C476)","v":"0"}]
[null,474,{"$f":"'Controlador de Pontuação'!C477&COUNTIF('Controlador de Pontuação'!$C$4:C477,'Controlador de Pontuação'!C477)","v":"0"}]
[null,475,{"$f":"'Controlador de Pontuação'!C478&COUNTIF('Controlador de Pontuação'!$C$4:C478,'Controlador de Pontuação'!C478)","v":"0"}]
[null,476,{"$f":"'Controlador de Pontuação'!C479&COUNTIF('Controlador de Pontuação'!$C$4:C479,'Controlador de Pontuação'!C479)","v":"0"}]
[null,477,{"$f":"'Controlador de Pontuação'!C480&COUNTIF('Controlador de Pontuação'!$C$4:C480,'Controlador de Pontuação'!C480)","v":"0"}]
[null,478,{"$f":"'Controlador de Pontuação'!C481&COUNTIF('Controlador de Pontuação'!$C$4:C481,'Controlador de Pontuação'!C481)","v":"0"}]
[null,479,{"$f":"'Controlador de Pontuação'!C482&COUNTIF('Controlador de Pontuação'!$C$4:C482,'Controlador de Pontuação'!C482)","v":"0"}]
[null,480,{"$f":"'Controlador de Pontuação'!C483&COUNTIF('Controlador de Pontuação'!$C$4:C483,'Controlador de Pontuação'!C483)","v":"0"}]
[null,481,{"$f":"'Controlador de Pontuação'!C484&COUNTIF('Controlador de Pontuação'!$C$4:C484,'Controlador de Pontuação'!C484)","v":"0"}]
[null,482,{"$f":"'Controlador de Pontuação'!C485&COUNTIF('Controlador de Pontuação'!$C$4:C485,'Controlador de Pontuação'!C485)","v":"0"}]
[null,483,{"$f":"'Controlador de Pontuação'!C486&COUNTIF('Controlador de Pontuação'!$C$4:C486,'Controlador de Pontuação'!C486)","v":"0"}]
[null,484,{"$f":"'Controlador de Pontuação'!C487&COUNTIF('Controlador de Pontuação'!$C$4:C487,'Controlador de Pontuação'!C487)","v":"0"}]
[null,485,{"$f":"'Controlador de Pontuação'!C488&COUNTIF('Controlador de Pontuação'!$C$4:C488,'Controlador de Pontuação'!C488)","v":"0"}]
[null,486,{"$f":"'Controlador de Pontuação'!C489&COUNTIF('Controlador de Pontuação'!$C$4:C489,'Controlador de Pontuação'!C489)","v":"0"}]
[null,487,{"$f":"'Controlador de Pontuação'!C490&COUNTIF('Controlador de Pontuação'!$C$4:C490,'Controlador de Pontuação'!C490)","v":"0"}]
[null,488,{"$f":"'Controlador de Pontuação'!C491&COUNTIF('Controlador de Pontuação'!$C$4:C491,'Controlador de Pontuação'!C491)","v":"0"}]
[null,489,{"$f":"'Controlador de Pontuação'!C492&COUNTIF('Controlador de Pontuação'!$C$4:C492,'Controlador de Pontuação'!C492)","v":"0"}]
[null,490,{"$f":"'Controlador de Pontuação'!C493&COUNTIF('Controlador de Pontuação'!$C$4:C493,'Controlador de Pontuação'!C493)","v":"0"}]
[null,491,{"$f":"'Controlador de Pontuação'!C494&COUNTIF('Controlador de Pontuação'!$C$4:C494,'Controlador de Pontuação'!C494)","v":"0"}]
[null,492,{"$f":"'Controlador de Pontuação'!C495&COUNTIF('Controlador de Pontuação'!$C$4:C495,'Controlador de Pontuação'!C495)","v":"0"}]
[null,493,{"$f":"'Controlador de Pontuação'!C496&COUNTIF('Controlador de Pontuação'!$C$4:C496,'Controlador de Pontuação'!C496)","v":"0"}]
[null,494,{"$f":"'Controlador de Pontuação'!C497&COUNTIF('Controlador de Pontuação'!$C$4:C497,'Controlador de Pontuação'!C497)","v":"0"}]
[null,495,{"$f":"'Controlador de Pontuação'!C498&COUNTIF('Controlador de Pontuação'!$C$4:C498,'Controlador de Pontuação'!C498)","v":"0"}]
[null,496,{"$f":"'Controlador de Pontuação'!C499&COUNTIF('Controlador de Pontuação'!$C$4:C499,'Controlador de Pontuação'!C499)","v":"0"}]
[null,497,{"$f":"'Controlador de Pontuação'!C500&COUNTIF('Controlador de Pontuação'!$C$4:C500,'Controlador de Pontuação'!C500)","v":"0"}]
[null,498,{"$f":"'Controlador de Pontuação'!C501&COUNTIF('Controlador de Pontuação'!$C$4:C501,'Controlador de Pontuação'!C501)","v":"0"}]
[null,499,{"$f":"'Controlador de Pontuação'!C502&COUNTIF('Controlador de Pontuação'!$C$4:C502,'Controlador de Pontuação'!C502)","v":"0"}]
[null,500,{"$f":"'Controlador de Pontuação'!C503&COUNTIF('Controlador de Pontuação'!$C$4:C503,'Controlador de Pontuação'!C503)","v":"0"}]
[null,501,{"$f":"'Controlador de Pontuação'!C504&COUNTIF('Controlador de Pontuação'!$C$4:C504,'Controlador de Pontuação'!C504)","v":"0"}]
[null,502,{"$f":"'Controlador de Pontuação'!C505&COUNTIF('Controlador de Pontuação'!$C$4:C505,'Controlador de Pontuação'!C505)","v":"0"}]
[null,503,{"$f":"'Controlador de Pontuação'!C506&COUNTIF('Controlador de Pontuação'!$C$4:C506,'Controlador de Pontuação'!C506)","v":"0"}]
[null,504,{"$f":"'Controlador de Pontuação'!C507&COUNTIF('Controlador de Pontuação'!$C$4:C507,'Controlador de Pontuação'!C507)","v":"0"}]
[null,505,{"$f":"'Controlador de Pontuação'!C508&COUNTIF('Controlador de Pontuação'!$C$4:C508,'Controlador de Pontuação'!C508)","v":"0"}]
[null,506,{"$f":"'Controlador de Pontuação'!C509&COUNTIF('Controlador de Pontuação'!$C$4:C509,'Controlador de Pontuação'!C509)","v":"0"}]
[null,507,{"$f":"'Controlador de Pontuação'!C510&COUNTIF('Controlador de Pontuação'!$C$4:C510,'Controlador de Pontuação'!C510)","v":"0"}]
[null,508,{"$f":"'Controlador de Pontuação'!C511&COUNTIF('Controlador de Pontuação'!$C$4:C511,'Controlador de Pontuação'!C511)","v":"0"}]
[null,509,{"$f":"'Controlador de Pontuação'!C512&COUNTIF('Controlador de Pontuação'!$C$4:C512,'Controlador de Pontuação'!C512)","v":"0"}]
[null,510,{"$f":"'Controlador de Pontuação'!C513&COUNTIF('Controlador de Pontuação'!$C$4:C513,'Controlador de Pontuação'!C513)","v":"0"}]
[null,511,{"$f":"'Controlador de Pontuação'!C514&COUNTIF('Controlador de Pontuação'!$C$4:C514,'Controlador de Pontuação'!C514)","v":"0"}]
[null,512,{"$f":"'Controlador de Pontuação'!C515&COUNTIF('Controlador de Pontuação'!$C$4:C515,'Controlador de Pontuação'!C515)","v":"0"}]
[null,513,{"$f":"'Controlador de Pontuação'!C516&COUNTIF('Controlador de Pontuação'!$C$4:C516,'Controlador de Pontuação'!C516)","v":"0"}]
[null,514,{"$f":"'Controlador de Pontuação'!C517&COUNTIF('Controlador de Pontuação'!$C$4:C517,'Controlador de Pontuação'!C517)","v":"0"}]
[null,515,{"$f":"'Controlador de Pontuação'!C518&COUNTIF('Controlador de Pontuação'!$C$4:C518,'Controlador de Pontuação'!C518)","v":"0"}]
[null,516,{"$f":"'Controlador de Pontuação'!C519&COUNTIF('Controlador de Pontuação'!$C$4:C519,'Controlador de Pontuação'!C519)","v":"0"}]
[null,517,{"$f":"'Controlador de Pontuação'!C520&COUNTIF('Controlador de Pontuação'!$C$4:C520,'Controlador de Pontuação'!C520)","v":"0"}]
[null,518,{"$f":"'Controlador de Pontuação'!C521&COUNTIF('Controlador de Pontuação'!$C$4:C521,'Controlador de Pontuação'!C521)","v":"0"}]
[null,519,{"$f":"'Controlador de Pontuação'!C522&COUNTIF('Controlador de Pontuação'!$C$4:C522,'Controlador de Pontuação'!C522)","v":"0"}]
[null,520,{"$f":"'Controlador de Pontuação'!C523&COUNTIF('Controlador de Pontuação'!$C$4:C523,'Controlador de Pontuação'!C523)","v":"0"}]
[null,521,{"$f":"'Controlador de Pontuação'!C524&COUNTIF('Controlador de Pontuação'!$C$4:C524,'Controlador de Pontuação'!C524)","v":"0"}]
[null,522,{"$f":"'Controlador de Pontuação'!C525&COUNTIF('Controlador de Pontuação'!$C$4:C525,'Controlador de Pontuação'!C525)","v":"0"}]
[null,523,{"$f":"'Controlador de Pontuação'!C526&COUNTIF('Controlador de Pontuação'!$C$4:C526,'Controlador de Pontuação'!C526)","v":"0"}]
[null,524,{"$f":"'Controlador de Pontuação'!C527&COUNTIF('Controlador de Pontuação'!$C$4:C527,'Controlador de Pontuação'!C527)","v":"0"}]
[null,525,{"$f":"'Controlador de Pontuação'!C528&COUNTIF('Controlador de Pontuação'!$C$4:C528,'Controlador de Pontuação'!C528)","v":"0"}]
[null,526,{"$f":"'Controlador de Pontuação'!C529&COUNTIF('Controlador de Pontuação'!$C$4:C529,'Controlador de Pontuação'!C529)","v":"0"}]
[null,527,{"$f":"'Controlador de Pontuação'!C530&COUNTIF('Controlador de Pontuação'!$C$4:C530,'Controlador de Pontuação'!C530)","v":"0"}]
[null,528,{"$f":"'Controlador de Pontuação'!C531&COUNTIF('Controlador de Pontuação'!$C$4:C531,'Controlador de Pontuação'!C531)","v":"0"}]
[null,529,{"$f":"'Controlador de Pontuação'!C532&COUNTIF('Controlador de Pontuação'!$C$4:C532,'Controlador de Pontuação'!C532)","v":"0"}]
[null,530,{"$f":"'Controlador de Pontuação'!C533&COUNTIF('Controlador de Pontuação'!$C$4:C533,'Controlador de Pontuação'!C533)","v":"0"}]
[null,531,{"$f":"'Controlador de Pontuação'!C534&COUNTIF('Controlador de Pontuação'!$C$4:C534,'Controlador de Pontuação'!C534)","v":"0"}]
[null,532,{"$f":"'Controlador de Pontuação'!C535&COUNTIF('Controlador de Pontuação'!$C$4:C535,'Controlador de Pontuação'!C535)","v":"0"}]
[null,533,{"$f":"'Controlador de Pontuação'!C536&COUNTIF('Controlador de Pontuação'!$C$4:C536,'Controlador de Pontuação'!C536)","v":"0"}]
[null,534,{"$f":"'Controlador de Pontuação'!C537&COUNTIF('Controlador de Pontuação'!$C$4:C537,'Controlador de Pontuação'!C537)","v":"0"}]
[null,535,{"$f":"'Controlador de Pontuação'!C538&COUNTIF('Controlador de Pontuação'!$C$4:C538,'Controlador de Pontuação'!C538)","v":"0"}]
[null,536,{"$f":"'Controlador de Pontuação'!C539&COUNTIF('Controlador de Pontuação'!$C$4:C539,'Controlador de Pontuação'!C539)","v":"0"}]
[null,537,{"$f":"'Controlador de Pontuação'!C540&COUNTIF('Controlador de Pontuação'!$C$4:C540,'Controlador de Pontuação'!C540)","v":"0"}]
[null,538,{"$f":"'Controlador de Pontuação'!C541&COUNTIF('Controlador de Pontuação'!$C$4:C541,'Controlador de Pontuação'!C541)","v":"0"}]
[null,539,{"$f":"'Controlador de Pontuação'!C542&COUNTIF('Controlador de Pontuação'!$C$4:C542,'Controlador de Pontuação'!C542)","v":"0"}]
[null,540,{"$f":"'Controlador de Pontuação'!C543&COUNTIF('Controlador de Pontuação'!$C$4:C543,'Controlador de Pontuação'!C543)","v":"0"}]
[null,541,{"$f":"'Controlador de Pontuação'!C544&COUNTIF('Controlador de Pontuação'!$C$4:C544,'Controlador de Pontuação'!C544)","v":"0"}]
[null,542,{"$f":"'Controlador de Pontuação'!C545&COUNTIF('Controlador de Pontuação'!$C$4:C545,'Controlador de Pontuação'!C545)","v":"0"}]
[null,543,{"$f":"'Controlador de Pontuação'!C546&COUNTIF('Controlador de Pontuação'!$C$4:C546,'Controlador de Pontuação'!C546)","v":"0"}]
[null,544,{"$f":"'Controlador de Pontuação'!C547&COUNTIF('Controlador de Pontuação'!$C$4:C547,'Controlador de Pontuação'!C547)","v":"0"}]
[null,545,{"$f":"'Controlador de Pontuação'!C548&COUNTIF('Controlador de Pontuação'!$C$4:C548,'Controlador de Pontuação'!C548)","v":"0"}]
[null,546,{"$f":"'Controlador de Pontuação'!C549&COUNTIF('Controlador de Pontuação'!$C$4:C549,'Controlador de Pontuação'!C549)","v":"0"}]
[null,547,{"$f":"'Controlador de Pontuação'!C550&COUNTIF('Controlador de Pontuação'!$C$4:C550,'Controlador de Pontuação'!C550)","v":"0"}]
[null,548,{"$f":"'Controlador de Pontuação'!C551&COUNTIF('Controlador de Pontuação'!$C$4:C551,'Controlador de Pontuação'!C551)","v":"0"}]
[null,549,{"$f":"'Controlador de Pontuação'!C552&COUNTIF('Controlador de Pontuação'!$C$4:C552,'Controlador de Pontuação'!C552)","v":"0"}]
[null,550,{"$f":"'Controlador de Pontuação'!C553&COUNTIF('Controlador de Pontuação'!$C$4:C553,'Controlador de Pontuação'!C553)","v":"0"}]
[null,551,{"$f":"'Controlador de Pontuação'!C554&COUNTIF('Controlador de Pontuação'!$C$4:C554,'Controlador de Pontuação'!C554)","v":"0"}]
[null,552,{"$f":"'Controlador de Pontuação'!C555&COUNTIF('Controlador de Pontuação'!$C$4:C555,'Controlador de Pontuação'!C555)","v":"0"}]
[null,553,{"$f":"'Controlador de Pontuação'!C556&COUNTIF('Controlador de Pontuação'!$C$4:C556,'Controlador de Pontuação'!C556)","v":"0"}]
[null,554,{"$f":"'Controlador de Pontuação'!C557&COUNTIF('Controlador de Pontuação'!$C$4:C557,'Controlador de Pontuação'!C557)","v":"0"}]
[null,555,{"$f":"'Controlador de Pontuação'!C558&COUNTIF('Controlador de Pontuação'!$C$4:C558,'Controlador de Pontuação'!C558)","v":"0"}]
[null,556,{"$f":"'Controlador de Pontuação'!C559&COUNTIF('Controlador de Pontuação'!$C$4:C559,'Controlador de Pontuação'!C559)","v":"0"}]
[null,557,{"$f":"'Controlador de Pontuação'!C560&COUNTIF('Controlador de Pontuação'!$C$4:C560,'Controlador de Pontuação'!C560)","v":"0"}]
[null,558,{"$f":"'Controlador de Pontuação'!C561&COUNTIF('Controlador de Pontuação'!$C$4:C561,'Controlador de Pontuação'!C561)","v":"0"}]
[null,559,{"$f":"'Controlador de Pontuação'!C562&COUNTIF('Controlador de Pontuação'!$C$4:C562,'Controlador de Pontuação'!C562)","v":"0"}]
[null,560,{"$f":"'Controlador de Pontuação'!C563&COUNTIF('Controlador de Pontuação'!$C$4:C563,'Controlador de Pontuação'!C563)","v":"0"}]
[null,561,{"$f":"'Controlador de Pontuação'!C564&COUNTIF('Controlador de Pontuação'!$C$4:C564,'Controlador de Pontuação'!C564)","v":"0"}]
[null,562,{"$f":"'Controlador de Pontuação'!C565&COUNTIF('Controlador de Pontuação'!$C$4:C565,'Controlador de Pontuação'!C565)","v":"0"}]
[null,563,{"$f":"'Controlador de Pontuação'!C566&COUNTIF('Controlador de Pontuação'!$C$4:C566,'Controlador de Pontuação'!C566)","v":"0"}]
[null,564,{"$f":"'Controlador de Pontuação'!C567&COUNTIF('Controlador de Pontuação'!$C$4:C567,'Controlador de Pontuação'!C567)","v":"0"}]
[null,565,{"$f":"'Controlador de Pontuação'!C568&COUNTIF('Controlador de Pontuação'!$C$4:C568,'Controlador de Pontuação'!C568)","v":"0"}]
[null,566,{"$f":"'Controlador de Pontuação'!C569&COUNTIF('Controlador de Pontuação'!$C$4:C569,'Controlador de Pontuação'!C569)","v":"0"}]
[null,567,{"$f":"'Controlador de Pontuação'!C570&COUNTIF('Controlador de Pontuação'!$C$4:C570,'Controlador de Pontuação'!C570)","v":"0"}]
[null,568,{"$f":"'Controlador de Pontuação'!C571&COUNTIF('Controlador de Pontuação'!$C$4:C571,'Controlador de Pontuação'!C571)","v":"0"}]
[null,569,{"$f":"'Controlador de Pontuação'!C572&COUNTIF('Controlador de Pontuação'!$C$4:C572,'Controlador de Pontuação'!C572)","v":"0"}]
[null,570,{"$f":"'Controlador de Pontuação'!C573&COUNTIF('Controlador de Pontuação'!$C$4:C573,'Controlador de Pontuação'!C573)","v":"0"}]
[null,571,{"$f":"'Controlador de Pontuação'!C574&COUNTIF('Controlador de Pontuação'!$C$4:C574,'Controlador de Pontuação'!C574)","v":"0"}]
[null,572,{"$f":"'Controlador de Pontuação'!C575&COUNTIF('Controlador de Pontuação'!$C$4:C575,'Controlador de Pontuação'!C575)","v":"0"}]
[null,573,{"$f":"'Controlador de Pontuação'!C576&COUNTIF('Controlador de Pontuação'!$C$4:C576,'Controlador de Pontuação'!C576)","v":"0"}]
[null,574,{"$f":"'Controlador de Pontuação'!C577&COUNTIF('Controlador de Pontuação'!$C$4:C577,'Controlador de Pontuação'!C577)","v":"0"}]
[null,575,{"$f":"'Controlador de Pontuação'!C578&COUNTIF('Controlador de Pontuação'!$C$4:C578,'Controlador de Pontuação'!C578)","v":"0"}]
[null,576,{"$f":"'Controlador de Pontuação'!C579&COUNTIF('Controlador de Pontuação'!$C$4:C579,'Controlador de Pontuação'!C579)","v":"0"}]
[null,577,{"$f":"'Controlador de Pontuação'!C580&COUNTIF('Controlador de Pontuação'!$C$4:C580,'Controlador de Pontuação'!C580)","v":"0"}]
[null,578,{"$f":"'Controlador de Pontuação'!C581&COUNTIF('Controlador de Pontuação'!$C$4:C581,'Controlador de Pontuação'!C581)","v":"0"}]
[null,579,{"$f":"'Controlador de Pontuação'!C582&COUNTIF('Controlador de Pontuação'!$C$4:C582,'Controlador de Pontuação'!C582)","v":"0"}]
[null,580,{"$f":"'Controlador de Pontuação'!C583&COUNTIF('Controlador de Pontuação'!$C$4:C583,'Controlador de Pontuação'!C583)","v":"0"}]
[null,581,{"$f":"'Controlador de Pontuação'!C584&COUNTIF('Controlador de Pontuação'!$C$4:C584,'Controlador de Pontuação'!C584)","v":"0"}]
[null,582,{"$f":"'Controlador de Pontuação'!C585&COUNTIF('Controlador de Pontuação'!$C$4:C585,'Controlador de Pontuação'!C585)","v":"0"}]
[null,583,{"$f":"'Controlador de Pontuação'!C586&COUNTIF('Controlador de Pontuação'!$C$4:C586,'Controlador de Pontuação'!C586)","v":"0"}]
[null,584,{"$f":"'Controlador de Pontuação'!C587&COUNTIF('Controlador de Pontuação'!$C$4:C587,'Controlador de Pontuação'!C587)","v":"0"}]
[null,585,{"$f":"'Controlador de Pontuação'!C588&COUNTIF('Controlador de Pontuação'!$C$4:C588,'Controlador de Pontuação'!C588)","v":"0"}]
[null,586,{"$f":"'Controlador de Pontuação'!C589&COUNTIF('Controlador de Pontuação'!$C$4:C589,'Controlador de Pontuação'!C589)","v":"0"}]
[null,587,{"$f":"'Controlador de Pontuação'!C590&COUNTIF('Controlador de Pontuação'!$C$4:C590,'Controlador de Pontuação'!C590)","v":"0"}]
[null,588,{"$f":"'Controlador de Pontuação'!C591&COUNTIF('Controlador de Pontuação'!$C$4:C591,'Controlador de Pontuação'!C591)","v":"0"}]
[null,589,{"$f":"'Controlador de Pontuação'!C592&COUNTIF('Controlador de Pontuação'!$C$4:C592,'Controlador de Pontuação'!C592)","v":"0"}]
[null,590,{"$f":"'Controlador de Pontuação'!C593&COUNTIF('Controlador de Pontuação'!$C$4:C593,'Controlador de Pontuação'!C593)","v":"0"}]
[null,591,{"$f":"'Controlador de Pontuação'!C594&COUNTIF('Controlador de Pontuação'!$C$4:C594,'Controlador de Pontuação'!C594)","v":"0"}]
[null,592,{"$f":"'Controlador de Pontuação'!C595&COUNTIF('Controlador de Pontuação'!$C$4:C595,'Controlador de Pontuação'!C595)","v":"0"}]
[null,593,{"$f":"'Controlador de Pontuação'!C596&COUNTIF('Controlador de Pontuação'!$C$4:C596,'Controlador de Pontuação'!C596)","v":"0"}]
[null,594,{"$f":"'Controlador de Pontuação'!C597&COUNTIF('Controlador de Pontuação'!$C$4:C597,'Controlador de Pontuação'!C597)","v":"0"}]
[null,595,{"$f":"'Controlador de Pontuação'!C598&COUNTIF('Controlador de Pontuação'!$C$4:C598,'Controlador de Pontuação'!C598)","v":"0"}]
[null,596,{"$f":"'Controlador de Pontuação'!C599&COUNTIF('Controlador de Pontuação'!$C$4:C599,'Controlador de Pontuação'!C599)","v":"0"}]
[null,597,{"$f":"'Controlador de Pontuação'!C600&COUNTIF('Controlador de Pontuação'!$C$4:C600,'Controlador de Pontuação'!C600)","v":"0"}]
[null,598,{"$f":"'Controlador de Pontuação'!C601&COUNTIF('Controlador de Pontuação'!$C$4:C601,'Controlador de Pontuação'!C601)","v":"0"}]
[null,599,{"$f":"'Controlador de Pontuação'!C602&COUNTIF('Controlador de Pontuação'!$C$4:C602,'Controlador de Pontuação'!C602)","v":"0"}]
[null,600,{"$f":"'Controlador de Pontuação'!C603&COUNTIF('Controlador de Pontuação'!$C$4:C603,'Controlador de Pontuação'!C603)","v":"0"}]
[null,601,{"$f":"'Controlador de Pontuação'!C604&COUNTIF('Controlador de Pontuação'!$C$4:C604,'Controlador de Pontuação'!C604)","v":"0"}]
[null,602,{"$f":"'Controlador de Pontuação'!C605&COUNTIF('Controlador de Pontuação'!$C$4:C605,'Controlador de Pontuação'!C605)","v":"0"}]
[null,603,{"$f":"'Controlador de Pontuação'!C606&COUNTIF('Controlador de Pontuação'!$C$4:C606,'Controlador de Pontuação'!C606)","v":"0"}]
[null,604,{"$f":"'Controlador de Pontuação'!C607&COUNTIF('Controlador de Pontuação'!$C$4:C607,'Controlador de Pontuação'!C607)","v":"0"}]
[null,605,{"$f":"'Controlador de Pontuação'!C608&COUNTIF('Controlador de Pontuação'!$C$4:C608,'Controlador de Pontuação'!C608)","v":"0"}]
[null,606,{"$f":"'Controlador de Pontuação'!C609&COUNTIF('Controlador de Pontuação'!$C$4:C609,'Controlador de Pontuação'!C609)","v":"0"}]
[null,607,{"$f":"'Controlador de Pontuação'!C610&COUNTIF('Controlador de Pontuação'!$C$4:C610,'Controlador de Pontuação'!C610)","v":"0"}]
[null,608,{"$f":"'Controlador de Pontuação'!C611&COUNTIF('Controlador de Pontuação'!$C$4:C611,'Controlador de Pontuação'!C611)","v":"0"}]
[null,609,{"$f":"'Controlador de Pontuação'!C612&COUNTIF('Controlador de Pontuação'!$C$4:C612,'Controlador de Pontuação'!C612)","v":"0"}]
[null,610,{"$f":"'Controlador de Pontuação'!C613&COUNTIF('Controlador de Pontuação'!$C$4:C613,'Controlador de Pontuação'!C613)","v":"0"}]
[null,611,{"$f":"'Controlador de Pontuação'!C614&COUNTIF('Controlador de Pontuação'!$C$4:C614,'Controlador de Pontuação'!C614)","v":"0"}]
[null,612,{"$f":"'Controlador de Pontuação'!C615&COUNTIF('Controlador de Pontuação'!$C$4:C615,'Controlador de Pontuação'!C615)","v":"0"}]
[null,613,{"$f":"'Controlador de Pontuação'!C616&COUNTIF('Controlador de Pontuação'!$C$4:C616,'Controlador de Pontuação'!C616)","v":"0"}]
[null,614,{"$f":"'Controlador de Pontuação'!C617&COUNTIF('Controlador de Pontuação'!$C$4:C617,'Controlador de Pontuação'!C617)","v":"0"}]
[null,615,{"$f":"'Controlador de Pontuação'!C618&COUNTIF('Controlador de Pontuação'!$C$4:C618,'Controlador de Pontuação'!C618)","v":"0"}]
[null,616,{"$f":"'Controlador de Pontuação'!C619&COUNTIF('Controlador de Pontuação'!$C$4:C619,'Controlador de Pontuação'!C619)","v":"0"}]
[null,617,{"$f":"'Controlador de Pontuação'!C620&COUNTIF('Controlador de Pontuação'!$C$4:C620,'Controlador de Pontuação'!C620)","v":"0"}]
[null,618,{"$f":"'Controlador de Pontuação'!C621&COUNTIF('Controlador de Pontuação'!$C$4:C621,'Controlador de Pontuação'!C621)","v":"0"}]
[null,619,{"$f":"'Controlador de Pontuação'!C622&COUNTIF('Controlador de Pontuação'!$C$4:C622,'Controlador de Pontuação'!C622)","v":"0"}]
[null,620,{"$f":"'Controlador de Pontuação'!C623&COUNTIF('Controlador de Pontuação'!$C$4:C623,'Controlador de Pontuação'!C623)","v":"0"}]
[null,621,{"$f":"'Controlador de Pontuação'!C624&COUNTIF('Controlador de Pontuação'!$C$4:C624,'Controlador de Pontuação'!C624)","v":"0"}]
[null,622,{"$f":"'Controlador de Pontuação'!C625&COUNTIF('Controlador de Pontuação'!$C$4:C625,'Controlador de Pontuação'!C625)","v":"0"}]
[null,623,{"$f":"'Controlador de Pontuação'!C626&COUNTIF('Controlador de Pontuação'!$C$4:C626,'Controlador de Pontuação'!C626)","v":"0"}]
[null,624,{"$f":"'Controlador de Pontuação'!C627&COUNTIF('Controlador de Pontuação'!$C$4:C627,'Controlador de Pontuação'!C627)","v":"0"}]
[null,625,{"$f":"'Controlador de Pontuação'!C628&COUNTIF('Controlador de Pontuação'!$C$4:C628,'Controlador de Pontuação'!C628)","v":"0"}]